Workbook

Sheet Úvod
A6: Príloha pre výpočet TCO a čistej súčasnej hodnoty z projektu
A7: Pre projekty zamerané na služby agendových informačných systémov
A8: Metodický pokyn k vypracovaniu finančnej analýzy projektu, analýzy nákladov a prínosov projektu a finančnej analýzy žiadateľa o NFP v programovom období 2014 – 2020.
A19: Názov riešenia | C19: Konsolidovaná údajová základňa rezortu zdravotníctva
A20: Číslo projektu ITMS | C20: projekt_279
A21: Kód ISVS z MetaIS | C21: isvs_8125
A22: Organizácia | C22: Ministerstvo zdravotníctva Slovenskej republiky
A23: Ulica | C23: Limbová 2, Bratislava
A24: PSČ | C24: 831 01
A25: Web | C25: http://www.health.gov.sk/
A26: IČO | C26: 00165565
A27: Spracovateľ | C27: Titul, Meno, Priezvisko
A28: Kontakt na spracovateľa | C28: Email, telefón
A30: Jednotlivé informácie sú farebne odlíšené nasledovne:
A31: Hlavička tabuľky | C31: Popisná informácia | E31: Automaticky vypočitavané hodnoty | G31: Miesto na vpisovanie vlastných hodnôt | I31: Preddefinované konštanty

Sheet CBA - Agendové IS
B1: Cashflow projektu | H1: Čistá súčasná hodnota z projektu
B2: Finančný cashflow | E2: Ekonomický cashflow | H2: koeficient obdobia | I2: Finančná (FNPV) | J2: Ekonomická (ENPV) | K2: Kumulovaná diskont. návratnosť ENPV
A3: Obdobie | B3: Alternat. A | C3: Alternat. B | D3: rozdiel | E3: Alternat. A | F3: Alternat. B | G3: rozdiel
A4: t1 | B4: ='Prínosy - Agendové IS'!Q4-'Výdavky - Agendové IS'!Q4 -> 0 | C4: ='Prínosy - Agendové IS'!R4-'Výdavky - Agendové IS'!R4 -> -5991305.006 | D4: =C4-B4 -> -5991305.006 | E4: ='Prínosy - Agendové IS'!T4-'Výdavky - Agendové IS'!Q4 -> 0 | F4: ='Prínosy - Agendové IS'!U4-'Výdavky - Agendové IS'!R4 -> -5991305.006 | G4: =F4-E4 -> -5991305.006 | H4: 0 | I4: =D4*(1/(1+Faktory!$D$3)^H4) -> -5991305.006 | J4: =G4*(1/(1+Faktory!$D$5)^H4) -> -5991305.006 | K4: =J4 -> -5991305.006 | L4: =IF(K4>0,"Rok návratu investície","<") -> <
A5: t2 | B5: ='Prínosy - Agendové IS'!Q5-'Výdavky - Agendové IS'!Q5 -> 0 | C5: ='Prínosy - Agendové IS'!R5-'Výdavky - Agendové IS'!R5 -> -4000580.939 | D5: =C5-B5 -> -4000580.939 | E5: ='Prínosy - Agendové IS'!T5-'Výdavky - Agendové IS'!Q5 -> 0 | F5: ='Prínosy - Agendové IS'!U5-'Výdavky - Agendové IS'!R5 -> -4000580.939 | G5: -4000580.939 | H5: 1 | I5: =D5*(1/(1+Faktory!$D$3)^H5) -> -3846712.442 | J5: =G5*(1/(1+Faktory!$D$5)^H5) -> -3810077.085 | K5: =J5+K4 -> -9801382.091 | L5: =IF(L4="<",IF(K5>0,"Rok návratu investície","<"),">") -> <
A6: t3 | B6: ='Prínosy - Agendové IS'!Q6-'Výdavky - Agendové IS'!Q6 -> 0 | C6: ='Prínosy - Agendové IS'!R6-'Výdavky - Agendové IS'!R6 -> -3815044.683 | D6: -3815044.683 | E6: ='Prínosy - Agendové IS'!T6-'Výdavky - Agendové IS'!Q6 -> 0 | F6: ='Prínosy - Agendové IS'!U6-'Výdavky - Agendové IS'!R6 -> -3815044.683 | G6: -3815044.683 | H6: 2 | I6: =D6*(1/(1+Faktory!$D$3)^H6) -> -3527223.265 | J6: =G6*(1/(1+Faktory!$D$5)^H6) -> -3460357.99 | K6: =J6+K5 -> -13261740.08 | L6: =IF(L5="<",IF(K6>0,"Rok návratu investície","<"),">") -> <
A7: t4 | B7: ='Prínosy - Agendové IS'!Q7-'Výdavky - Agendové IS'!Q7 -> -4239000 | C7: ='Prínosy - Agendové IS'!R7-'Výdavky - Agendové IS'!R7 -> -2907513.988 | D7: 1331486.012 | E7: ='Prínosy - Agendové IS'!T7-'Výdavky - Agendové IS'!Q7 -> -4239000 | F7: ='Prínosy - Agendové IS'!U7-'Výdavky - Agendové IS'!R7 -> -2462178.324 | G7: 1776821.676 | H7: 3 | I7: =D7*(1/(1+Faktory!$D$3)^H7) -> 1183686.216 | J7: =G7*(1/(1+Faktory!$D$5)^H7) -> 1534885.37 | K7: -11726854.71 | L7: <
A8: t5 | B8: ='Prínosy - Agendové IS'!Q8-'Výdavky - Agendové IS'!Q8 -> -4239000 | C8: ='Prínosy - Agendové IS'!R8-'Výdavky - Agendové IS'!R8 -> -1942513.988 | D8: 2296486.012 | E8: ='Prínosy - Agendové IS'!T8-'Výdavky - Agendové IS'!Q8 -> -4239000 | F8: ='Prínosy - Agendové IS'!U8-'Výdavky - Agendové IS'!R8 -> -1563177.546 | G8: 2675822.454 | H8: 4 | I8: =D8*(1/(1+Faktory!$D$3)^H8) -> 1963045.867 | J8: =G8*(1/(1+Faktory!$D$5)^H8) -> 2201405.755 | K8: -9525448.956 | L8: <
A9: t6 | B9: ='Prínosy - Agendové IS'!Q9-'Výdavky - Agendové IS'!Q9 -> -4239000 | C9: ='Prínosy - Agendové IS'!R9-'Výdavky - Agendové IS'!R9 -> -1872513.988 | D9: 2366486.012 | E9: ='Prínosy - Agendové IS'!T9-'Výdavky - Agendové IS'!Q9 -> -4239000 | F9: ='Prínosy - Agendové IS'!U9-'Výdavky - Agendové IS'!R9 -> -1417787.88 | G9: 2821212.12 | H9: 5 | I9: =D9*(1/(1+Faktory!$D$3)^H9) -> 1945079.001 | J9: =G9*(1/(1+Faktory!$D$5)^H9) -> 2210493.517 | K9: -7314955.439 | L9: <
A10: t7 | B10: ='Prínosy - Agendové IS'!Q10-'Výdavky - Agendové IS'!Q10 -> -4239000 | C10: ='Prínosy - Agendové IS'!R10-'Výdavky - Agendové IS'!R10 -> -1817513.988 | D10: 2421486.012 | E10: ='Prínosy - Agendové IS'!T10-'Výdavky - Agendové IS'!Q10 -> -4239000 | F10: ='Prínosy - Agendové IS'!U10-'Výdavky - Agendové IS'!R10 -> -1290175.992 | G10: 2948824.008 | H10: 6 | I10: =D10*(1/(1+Faktory!$D$3)^H10) -> 1913735.569 | J10: =G10*(1/(1+Faktory!$D$5)^H10) -> 2200457.877 | K10: -5114497.563 | L10: <
A11: t8 | B11: ='Prínosy - Agendové IS'!Q11-'Výdavky - Agendové IS'!Q11 -> -4239000 | C11: ='Prínosy - Agendové IS'!R11-'Výdavky - Agendové IS'!R11 -> -1707513.988 | D11: 2531486.012 | E11: ='Prínosy - Agendové IS'!T11-'Výdavky - Agendové IS'!Q11 -> -4239000 | F11: ='Prínosy - Agendové IS'!U11-'Výdavky - Agendové IS'!R11 -> -1135064.104 | G11: 3103935.896 | H11: 7 | I11: =D11*(1/(1+Faktory!$D$3)^H11) -> 1923721.314 | J11: =G11*(1/(1+Faktory!$D$5)^H11) -> 2205909.291 | K11: -2908588.271 | L11: <
A12: t9 | B12: ='Prínosy - Agendové IS'!Q12-'Výdavky - Agendové IS'!Q12 -> -4239000 | C12: ='Prínosy - Agendové IS'!R12-'Výdavky - Agendové IS'!R12 -> -1707513.988 | D12: 2531486.012 | E12: ='Prínosy - Agendové IS'!T12-'Výdavky - Agendové IS'!Q12 -> -4239000 | F12: ='Prínosy - Agendové IS'!U12-'Výdavky - Agendové IS'!R12 -> -1053285.549 | G12: 3185714.451 | H12: 8 | I12: =D12*(1/(1+Faktory!$D$3)^H12) -> 1849732.033 | J12: =G12*(1/(1+Faktory!$D$5)^H12) -> 2156216.937 | K12: -752371.3348 | L12: <
A13: t10 | B13: ='Prínosy - Agendové IS'!Q13-'Výdavky - Agendové IS'!Q13 -> -4239000 | C13: ='Prínosy - Agendové IS'!R13-'Výdavky - Agendové IS'!R13 -> -1707513.988 | D13: 2531486.012 | E13: ='Prínosy - Agendové IS'!T13-'Výdavky - Agendové IS'!Q13 -> -4239000 | F13: ='Prínosy - Agendové IS'!U13-'Výdavky - Agendové IS'!R13 -> -889728.4392 | G13: 3349271.561 | H13: 9 | I13: =D13*(1/(1+Faktory!$D$3)^H13) -> 1778588.493 | J13: =G13*(1/(1+Faktory!$D$5)^H13) -> 2158970.311 | K13: 1406598.976 | L13: Rok návratu investície
A14: SPOLU | B14: =SUM(B4:B13) -> -29673000 | C14: -27469528.55 | D14: 2203471.453 | E14: -29673000 | F14: -23618328.46 | G14: 6054671.536 | H14: SPOLU | I14: =SUM(I4:I13) -> -807652.2193 | J14: =SUM(J4:J13) -> 1406598.976

Sheet Analyza citlivosti - AgendovéIS
C1: ENPV | D1: -3 | E1: -0.6 | F1: -0.4 | G1: -0.01 | H1: 0 | I1: 0.01 | J1: 0.4 | K1: 0.6 | L1: 2
A2: ='Parametre - Agendové IS'!A3:A3 -> Počet podaní | B2: 0 | C2: ='CBA - Agendové IS'!$J$14 -> 1406598.976 | D2: 5114601.521 | E2: 2148199.485 | F2: 1900999.315 | G2: 1418958.985 | H2: 1406598.976 | I2: 1394238.968 | J2: 912198.6369 | K2: 664998.4672 | L2: -1065402.72
D3: -3 | E3: -0.6 | F3: -0.4 | G3: -0.01 | H3: 0 | I3: 0.01 | J3: 0.4 | K3: 0.6 | L3: 2
A4: ='Parametre - Agendové IS'!A13:A13 -> Výška administratívneho poplatku | B4: 0 | C4: ='CBA - Agendové IS'!$J$14 -> 1406598.976 | D4: 1406598.976 | E4: 1406598.976 | F4: 1406598.976 | G4: 1406598.976 | H4: 1406598.976 | I4: 1406598.976 | J4: 1406598.976 | K4: 1406598.976 | L4: 1406598.976
D5: -3 | E5: -0.6 | F5: -0.4 | G5: -0.01 | H5: 0 | I5: 0.01 | J5: 0.4 | K5: 0.6 | L5: 2
A6: ='Parametre - Agendové IS'!A23:A23 -> Trvanie spracovania podania | B6: 0 | C6: ='CBA - Agendové IS'!$J$14 -> 1406598.976 | D6: 5114601.521 | E6: 2148199.485 | F6: 1900999.315 | G6: 1418958.985 | H6: 1406598.976 | I6: 1394238.968 | J6: 912198.6369 | K6: 664998.4672 | L6: -1065402.72
D7: -3 | E7: -0.6 | F7: -0.4 | G7: -0.01 | H7: 0 | I7: 0.01 | J7: 0.4 | K7: 0.6 | L7: 2
A8: ='Parametre - Agendové IS'!A33:A33 -> Priemerný čas potrebný na vypracovanie a doručenie podania | B8: 0 | C8: ='CBA - Agendové IS'!$J$14 -> 1406598.976 | D8: 1406598.976 | E8: 1406598.976 | F8: 1406598.976 | G8: 1406598.976 | H8: 1406598.976 | I8: 1406598.976 | J8: 1406598.976 | K8: 1406598.976 | L8: 1406598.976
D9: -3 | E9: -0.6 | F9: -0.4 | G9: -0.01 | H9: 0 | I9: 0.01 | J9: 0.4 | K9: 0.6 | L9: 2
A10: ='Parametre - Agendové IS'!A43:A43 -> Počet zamestnancov vybavujúcich agendu | B10: 0 | C10: ='CBA - Agendové IS'!$J$14 -> 1406598.976 | D10: 5114601.521 | E10: 2148199.485 | F10: 1900999.315 | G10: 1418958.985 | H10: 1406598.976 | I10: 1394238.968 | J10: 912198.6369 | K10: 664998.4672 | L10: -1065402.72
D11: -3 | E11: -0.6 | F11: -0.4 | G11: -0.01 | H11: 0 | I11: 0.01 | J11: 0.4 | K11: 0.6 | L11: 2
A12: ='Parametre - Agendové IS'!A53:A53 -> Kvalitatívne prínosy - úspora prevádzkových nákladov z migrácie do cloudu | B12: 0 | C12: ='CBA - Agendové IS'!$J$14 -> 1406598.976 | D12: -7063496.377 | E12: -287420.0945 | F12: 277252.929 | G12: 1378365.325 | H12: 1406598.976 | I12: 1434832.627 | J12: 2535945.023 | K12: 3100618.047 | L12: 7053329.212

Sheet Prínosy - Agendové IS
B1: Priame prínosy | E1: Nepriame prínosy | Q1: Prínosy spolu
B2: Administratívne poplatky | E2: Ostatné daňové a nedaňové príjmy | H2: Cena ušetreného času používateľa | K2: Úspora z prevádzky pri využívaní cloudových služieb | N2: Kvalitatívne prínosy vo finančnom vyjadrení | Q2: Finančné prínosy | T2: Ekonomické prínosy
A3: Obdobie | B3: Alternat. A | C3: Alternat. B | D3: rozdiel | E3: Alternat. A | F3: Alternat. B | G3: rozdiel | H3: Alternat. A | I3: Alternat. B | J3: rozdiel | K3: Alternat. A | L3: Alternat. B | M3: rozdiel | N3: Alternat. A | O3: Alternat. B | P3: rozdiel | Q3: Alternat. A | R3: Alternat. B | S3: rozdiel | T3: Alternat. A | U3: Alternat. B | V3: rozdiel
A4: t1 | B4: =IF(ISERR('Parametre - Agendové IS'!D3*'Parametre - Agendové IS'!D13),"-",'Parametre - Agendové IS'!D3*'Parametre - Agendové IS'!D13) -> - | C4: =IF(ISERR('Parametre - Agendové IS'!E3*'Parametre - Agendové IS'!E13),"-",'Parametre - Agendové IS'!E3*'Parametre - Agendové IS'!E13) -> - | D4: =IF(ISERR(C4-B4),"-",C4-B4) -> - | G4: =IF(ISERR(F4-E4),"-",F4-E4) -> 0 | H4: 0 | I4: =IF(ISERR(Faktory!$D$11*'Parametre - Agendové IS'!E3*('Parametre - Agendové IS'!D33-'Parametre - Agendové IS'!E33)),"-",Faktory!$D$11*'Parametre - Agendové IS'!E3*('Parametre - Agendové IS'!D33-'Parametre - Agendové IS'!E33)) -> - | J4: =IF(ISERR(I4-H4),"-",I4-H4) -> - | K4: ='Spotrebované cloudové služby'!D3 -> 0 | L4: ='Spotrebované cloudové služby'!E3 -> 0 | M4: =IF(ISERR(K4-L4),"-",K4-L4) -> 0 | N4: ='Parametre - Agendové IS'!D53 -> 0 | O4: ='Parametre - Agendové IS'!E53 -> 0 | P4: =IF(ISERR(O4-N4),"-",O4-N4) -> 0 | Q4: =SUM(B4,E4) -> 0 | R4: =SUM(C4,F4) -> 0 | S4: =R4-Q4 -> 0 | T4: =SUM(H4,K4,N4,Q4) -> 0 | U4: =SUM(I4,L4,O4,R4) -> 0 | V4: =U4-T4 -> 0
A5: t2 | B5: =IF(ISERR('Parametre - Agendové IS'!D4*'Parametre - Agendové IS'!D14),"-",'Parametre - Agendové IS'!D4*'Parametre - Agendové IS'!D14) -> - | C5: =IF(ISERR('Parametre - Agendové IS'!E4*'Parametre - Agendové IS'!E14),"-",'Parametre - Agendové IS'!E4*'Parametre - Agendové IS'!E14) -> - | D5: =IF(ISERR(C5-B5),"-",C5-B5) -> - | G5: 0 | H5: 0 | I5: =IF(ISERR(Faktory!$D$11*'Parametre - Agendové IS'!E4*('Parametre - Agendové IS'!D34-'Parametre - Agendové IS'!E34)),"-",Faktory!$D$11*'Parametre - Agendové IS'!E4*('Parametre - Agendové IS'!D34-'Parametre - Agendové IS'!E34)) -> - | J5: =IF(ISERR(I5-H5),"-",I5-H5) -> - | K5: ='Spotrebované cloudové služby'!D4 -> 0 | L5: ='Spotrebované cloudové služby'!E4 -> 0 | M5: 0 | N5: ='Parametre - Agendové IS'!D54 -> 0 | O5: ='Parametre - Agendové IS'!E54 -> 0 | P5: =IF(ISERR(O5-N5),"-",O5-N5) -> 0 | Q5: =SUM(B5,E5) -> 0 | R5: 0 | S5: =R5-Q5 -> 0 | T5: 0 | U5: 0 | V5: =U5-T5 -> 0
A6: t3 | B6: =IF(ISERR('Parametre - Agendové IS'!D5*'Parametre - Agendové IS'!D15),"-",'Parametre - Agendové IS'!D5*'Parametre - Agendové IS'!D15) -> - | C6: =IF(ISERR('Parametre - Agendové IS'!E5*'Parametre - Agendové IS'!E15),"-",'Parametre - Agendové IS'!E5*'Parametre - Agendové IS'!E15) -> - | D6: - | G6: 0 | H6: 0 | I6: =IF(ISERR(Faktory!$D$11*'Parametre - Agendové IS'!E5*('Parametre - Agendové IS'!D35-'Parametre - Agendové IS'!E35)),"-",Faktory!$D$11*'Parametre - Agendové IS'!E5*('Parametre - Agendové IS'!D35-'Parametre - Agendové IS'!E35)) -> - | J6: =IF(ISERR(I6-H6),"-",I6-H6) -> - | K6: ='Spotrebované cloudové služby'!D5 -> 0 | L6: ='Spotrebované cloudové služby'!E5 -> 0 | M6: 0 | N6: ='Parametre - Agendové IS'!D55 -> 0 | O6: ='Parametre - Agendové IS'!E55 -> 0 | P6: 0 | Q6: 0 | R6: 0 | S6: 0 | T6: 0 | U6: 0 | V6: 0
A7: t4 | B7: =IF(ISERR('Parametre - Agendové IS'!D6*'Parametre - Agendové IS'!D16),"-",'Parametre - Agendové IS'!D6*'Parametre - Agendové IS'!D16) -> 0 | C7: =IF(ISERR('Parametre - Agendové IS'!E6*'Parametre - Agendové IS'!E16),"-",'Parametre - Agendové IS'!E6*'Parametre - Agendové IS'!E16) -> 0 | D7: 0 | G7: 0 | H7: 0 | I7: =IF(ISERR(Faktory!$D$11*'Parametre - Agendové IS'!E6*('Parametre - Agendové IS'!D36-'Parametre - Agendové IS'!E36)),"-",Faktory!$D$11*'Parametre - Agendové IS'!E6*('Parametre - Agendové IS'!D36-'Parametre - Agendové IS'!E36)) -> 0 | J7: 0 | K7: ='Spotrebované cloudové služby'!D6 -> 0 | L7: ='Spotrebované cloudové služby'!E6 -> 0 | M7: =IF(ISERR(K7-L7),"-",K7-L7) -> 0 | N7: ='Parametre - Agendové IS'!D56 -> 0 | O7: ='Parametre - Agendové IS'!E56 -> 445335.6647 | P7: =IF(ISERR(O7-N7),"-",O7-N7) -> 445335.6647 | Q7: 0 | R7: 0 | S7: 0 | T7: 0 | U7: =SUM(I7,L7,O7,R7) -> 445335.6647 | V7: =U7-T7 -> 445335.6647
A8: t5 | B8: =IF(ISERR('Parametre - Agendové IS'!D7*'Parametre - Agendové IS'!D17),"-",'Parametre - Agendové IS'!D7*'Parametre - Agendové IS'!D17) -> 0 | C8: =IF(ISERR('Parametre - Agendové IS'!E7*'Parametre - Agendové IS'!E17),"-",'Parametre - Agendové IS'!E7*'Parametre - Agendové IS'!E17) -> 0 | D8: 0 | G8: 0 | H8: 0 | I8: =IF(ISERR(Faktory!$D$11*'Parametre - Agendové IS'!E7*('Parametre - Agendové IS'!D37-'Parametre - Agendové IS'!E37)),"-",Faktory!$D$11*'Parametre - Agendové IS'!E7*('Parametre - Agendové IS'!D37-'Parametre - Agendové IS'!E37)) -> 0 | J8: 0 | K8: ='Spotrebované cloudové služby'!D7 -> 0 | L8: ='Spotrebované cloudové služby'!E7 -> 0 | M8: 0 | N8: ='Parametre - Agendové IS'!D57 -> 0 | O8: ='Parametre - Agendové IS'!E57 -> 379336.4418 | P8: 379336.4418 | Q8: 0 | R8: 0 | S8: 0 | T8: 0 | U8: 379336.4418 | V8: 379336.4418
A9: t6 | B9: =IF(ISERR('Parametre - Agendové IS'!D8*'Parametre - Agendové IS'!D18),"-",'Parametre - Agendové IS'!D8*'Parametre - Agendové IS'!D18) -> 0 | C9: =IF(ISERR('Parametre - Agendové IS'!E8*'Parametre - Agendové IS'!E18),"-",'Parametre - Agendové IS'!E8*'Parametre - Agendové IS'!E18) -> 0 | D9: 0 | G9: 0 | H9: 0 | I9: =IF(ISERR(Faktory!$D$11*'Parametre - Agendové IS'!E8*('Parametre - Agendové IS'!D38-'Parametre - Agendové IS'!E38)),"-",Faktory!$D$11*'Parametre - Agendové IS'!E8*('Parametre - Agendové IS'!D38-'Parametre - Agendové IS'!E38)) -> 0 | J9: 0 | K9: ='Spotrebované cloudové služby'!D8 -> 0 | L9: ='Spotrebované cloudové služby'!E8 -> 0 | M9: 0 | N9: ='Parametre - Agendové IS'!D58 -> 0 | O9: ='Parametre - Agendové IS'!E58 -> 454726.1078 | P9: 454726.1078 | Q9: 0 | R9: 0 | S9: 0 | T9: 0 | U9: 454726.1078 | V9: 454726.1078
A10: t7 | B10: =IF(ISERR('Parametre - Agendové IS'!D9*'Parametre - Agendové IS'!D19),"-",'Parametre - Agendové IS'!D9*'Parametre - Agendové IS'!D19) -> 0 | C10: =IF(ISERR('Parametre - Agendové IS'!E9*'Parametre - Agendové IS'!E19),"-",'Parametre - Agendové IS'!E9*'Parametre - Agendové IS'!E19) -> 0 | D10: 0 | G10: 0 | H10: 0 | I10: =IF(ISERR(Faktory!$D$11*'Parametre - Agendové IS'!E9*('Parametre - Agendové IS'!D39-'Parametre - Agendové IS'!E39)),"-",Faktory!$D$11*'Parametre - Agendové IS'!E9*('Parametre - Agendové IS'!D39-'Parametre - Agendové IS'!E39)) -> 0 | J10: 0 | K10: ='Spotrebované cloudové služby'!D9 -> 0 | L10: ='Spotrebované cloudové služby'!E9 -> 0 | M10: 0 | N10: ='Parametre - Agendové IS'!D59 -> 0 | O10: ='Parametre - Agendové IS'!E59 -> 527337.9961 | P10: 527337.9961 | Q10: 0 | R10: 0 | S10: 0 | T10: 0 | U10: 527337.9961 | V10: 527337.9961
A11: t8 | B11: =IF(ISERR('Parametre - Agendové IS'!D10*'Parametre - Agendové IS'!D20),"-",'Parametre - Agendové IS'!D10*'Parametre - Agendové IS'!D20) -> 0 | C11: =IF(ISERR('Parametre - Agendové IS'!E10*'Parametre - Agendové IS'!E20),"-",'Parametre - Agendové IS'!E10*'Parametre - Agendové IS'!E20) -> 0 | D11: 0 | G11: 0 | H11: 0 | I11: =IF(ISERR(Faktory!$D$11*'Parametre - Agendové IS'!E10*('Parametre - Agendové IS'!D40-'Parametre - Agendové IS'!E40)),"-",Faktory!$D$11*'Parametre - Agendové IS'!E10*('Parametre - Agendové IS'!D40-'Parametre - Agendové IS'!E40)) -> 0 | J11: 0 | K11: ='Spotrebované cloudové služby'!D10 -> 0 | L11: ='Spotrebované cloudové služby'!E10 -> 0 | M11: 0 | N11: ='Parametre - Agendové IS'!D60 -> 0 | O11: ='Parametre - Agendové IS'!E60 -> 572449.8843 | P11: 572449.8843 | Q11: 0 | R11: 0 | S11: 0 | T11: 0 | U11: 572449.8843 | V11: 572449.8843
A12: t9 | B12: =IF(ISERR('Parametre - Agendové IS'!D11*'Parametre - Agendové IS'!D21),"-",'Parametre - Agendové IS'!D11*'Parametre - Agendové IS'!D21) -> 0 | C12: =IF(ISERR('Parametre - Agendové IS'!E11*'Parametre - Agendové IS'!E21),"-",'Parametre - Agendové IS'!E11*'Parametre - Agendové IS'!E21) -> 0 | D12: 0 | G12: 0 | H12: 0 | I12: =IF(ISERR(Faktory!$D$11*'Parametre - Agendové IS'!E11*('Parametre - Agendové IS'!D41-'Parametre - Agendové IS'!E41)),"-",Faktory!$D$11*'Parametre - Agendové IS'!E11*('Parametre - Agendové IS'!D41-'Parametre - Agendové IS'!E41)) -> 0 | J12: 0 | K12: ='Spotrebované cloudové služby'!D11 -> 0 | L12: ='Spotrebované cloudové služby'!E11 -> 0 | M12: 0 | N12: ='Parametre - Agendové IS'!D61 -> 0 | O12: ='Parametre - Agendové IS'!E61 -> 654228.4392 | P12: 654228.4392 | Q12: 0 | R12: 0 | S12: 0 | T12: 0 | U12: 654228.4392 | V12: 654228.4392
A13: t10 | B13: =IF(ISERR('Parametre - Agendové IS'!D12*'Parametre - Agendové IS'!D22),"-",'Parametre - Agendové IS'!D12*'Parametre - Agendové IS'!D22) -> 0 | C13: =IF(ISERR('Parametre - Agendové IS'!E12*'Parametre - Agendové IS'!E22),"-",'Parametre - Agendové IS'!E12*'Parametre - Agendové IS'!E22) -> 0 | D13: 0 | G13: 0 | H13: 0 | I13: =IF(ISERR(Faktory!$D$11*'Parametre - Agendové IS'!E12*('Parametre - Agendové IS'!D42-'Parametre - Agendové IS'!E42)),"-",Faktory!$D$11*'Parametre - Agendové IS'!E12*('Parametre - Agendové IS'!D42-'Parametre - Agendové IS'!E42)) -> 0 | J13: 0 | K13: ='Spotrebované cloudové služby'!D12 -> 0 | L13: ='Spotrebované cloudové služby'!E12 -> 0 | M13: 0 | N13: ='Parametre - Agendové IS'!D62 -> 0 | O13: ='Parametre - Agendové IS'!E62 -> 817785.549 | P13: 817785.549 | Q13: 0 | R13: 0 | S13: 0 | T13: 0 | U13: 817785.549 | V13: 817785.549
P14: SPOLU | Q14: =SUM(Q4:Q13) -> 0 | R14: 0 | S14: 0 | T14: 0 | U14: 3851200.083 | V14: 3851200.083

Sheet Výdavky - Agendové IS
B1: Fixné výdavky | K1: Variabilné výdavky | Q1: Výdavky spolu
B2: HW | E2: SW | H2: Služby | K2: Všeobecný materiál | N2: Osobné náklady
A3: Obdobie | B3: Alternat. 1 | C3: Alternat. 2 | D3: rozdiel | E3: Alternat. 1 | F3: Alternat. 2 | G3: rozdiel | H3: Alternat. 1 | I3: Alternat. 2 | J3: rozdiel | K3: Alternat. 1 | L3: Alternat. 2 | M3: rozdiel | N3: Alternat. 1 | O3: Alternat. 2 | P3: rozdiel | Q3: Alternat. 1 | R3: Alternat. 2 | S3: rozdiel
A4: t1 | B4: =TCO!D$21 -> 0 | C4: =TCO!D$11+TCO!D$12 -> 53333.33333 | D4: =C4-B4 -> 53333.33333 | E4: =TCO!D$20 -> 0 | F4: =TCO!D$7+TCO!D$8 -> 1720000 | G4: =F4-E4 -> 1720000 | H4: =TCO!D$24-(TCO!D$20+TCO!D$21) -> 0 | I4: =TCO!D$9+TCO!D$10 -> 4217971.673 | J4: =I4-H4 -> 4217971.673 | K4: =IF(ISERR(Faktory!$D$9*'Parametre - Agendové IS'!D3),"-",Faktory!$D$9*'Parametre - Agendové IS'!D3) -> 0 | L4: =IF(ISERR(Faktory!$D$9*'Parametre - Agendové IS'!E3),"-",Faktory!$D$9*'Parametre - Agendové IS'!E3) -> 0 | M4: =IF(ISERR(L4-K4),"-",L4-K4) -> 0 | N4: =IF(ISERR(Faktory!$D$7*'Parametre - Agendové IS'!D3*'Parametre - Agendové IS'!D23*'Parametre - Agendové IS'!D43),"-",Faktory!$D$7*'Parametre - Agendové IS'!D3*'Parametre - Agendové IS'!D23*'Parametre - Agendové IS'!D43) -> - | O4: =IF(ISERR(Faktory!$D$7*'Parametre - Agendové IS'!E3*'Parametre - Agendové IS'!E23*'Parametre - Agendové IS'!E43),"-",Faktory!$D$7*'Parametre - Agendové IS'!E3*'Parametre - Agendové IS'!E23*'Parametre - Agendové IS'!E43) -> - | P4: =IF(ISERR(O4-N4),"-",O4-N4) -> - | Q4: =SUM(B4,E4,H4,K4,N4) -> 0 | R4: =SUM(C4,F4,I4,L4,O4) -> 5991305.006 | S4: =R4-Q4 -> 5991305.006
A5: t2 | B5: =TCO!E$21 -> 0 | C5: =TCO!E$11+TCO!E$12 -> 355733.3333 | D5: =C5-B5 -> 355733.3333 | E5: =TCO!E$20 -> 0 | F5: =TCO!E$7+TCO!E$8 -> 0 | G5: =F5-E5 -> 0 | H5: =TCO!E$24-(TCO!E$20+TCO!E$21) -> 0 | I5: =TCO!E$9+TCO!E$10 -> 3644847.606 | J5: =I5-H5 -> 3644847.606 | K5: =IF(ISERR(Faktory!$D$9*'Parametre - Agendové IS'!D4),"-",Faktory!$D$9*'Parametre - Agendové IS'!D4) -> 0 | L5: =IF(ISERR(Faktory!$D$9*'Parametre - Agendové IS'!E4),"-",Faktory!$D$9*'Parametre - Agendové IS'!E4) -> 0 | M5: =IF(ISERR(L5-K5),"-",L5-K5) -> 0 | N5: =IF(ISERR(Faktory!$D$7*'Parametre - Agendové IS'!D4*'Parametre - Agendové IS'!D24*'Parametre - Agendové IS'!D44),"-",Faktory!$D$7*'Parametre - Agendové IS'!D4*'Parametre - Agendové IS'!D24*'Parametre - Agendové IS'!D44) -> - | O5: =IF(ISERR(Faktory!$D$7*'Parametre - Agendové IS'!E4*'Parametre - Agendové IS'!E24*'Parametre - Agendové IS'!E44),"-",Faktory!$D$7*'Parametre - Agendové IS'!E4*'Parametre - Agendové IS'!E24*'Parametre - Agendové IS'!E44) -> - | P5: =IF(ISERR(O5-N5),"-",O5-N5) -> - | Q5: =SUM(B5,E5,H5,K5,N5) -> 0 | R5: 4000580.939 | S5: =R5-Q5 -> 4000580.939
A6: t3 | B6: =TCO!F$21 -> 0 | C6: =TCO!F$11+TCO!F$12 -> 471822.6773 | D6: 471822.6773 | E6: =TCO!F$20 -> 0 | F6: =TCO!F$7+TCO!F$8 -> 0 | G6: 0 | H6: =TCO!F$24-(TCO!F$20+TCO!F$21) -> 0 | I6: =TCO!F$9+TCO!F$10 -> 3343222.006 | J6: 3343222.006 | K6: =IF(ISERR(Faktory!$D$9*'Parametre - Agendové IS'!D5),"-",Faktory!$D$9*'Parametre - Agendové IS'!D5) -> 0 | L6: =IF(ISERR(Faktory!$D$9*'Parametre - Agendové IS'!E5),"-",Faktory!$D$9*'Parametre - Agendové IS'!E5) -> 0 | M6: =IF(ISERR(L6-K6),"-",L6-K6) -> 0 | N6: =IF(ISERR(Faktory!$D$7*'Parametre - Agendové IS'!D5*'Parametre - Agendové IS'!D25*'Parametre - Agendové IS'!D45),"-",Faktory!$D$7*'Parametre - Agendové IS'!D5*'Parametre - Agendové IS'!D25*'Parametre - Agendové IS'!D45) -> - | O6: =IF(ISERR(Faktory!$D$7*'Parametre - Agendové IS'!E5*'Parametre - Agendové IS'!E25*'Parametre - Agendové IS'!E45),"-",Faktory!$D$7*'Parametre - Agendové IS'!E5*'Parametre - Agendové IS'!E25*'Parametre - Agendové IS'!E45) -> - | P6: =IF(ISERR(O6-N6),"-",O6-N6) -> - | Q6: 0 | R6: 3815044.683 | S6: 3815044.683
A7: t4 | B7: =TCO!G$21 -> 0 | C7: =TCO!G$11+TCO!G$12 -> 400489.344 | D7: 400489.344 | E7: =TCO!G$20 -> 0 | F7: =TCO!G$7+TCO!G$8 -> 504000 | G7: 504000 | H7: =TCO!G$24-(TCO!G$20+TCO!G$21) -> 0 | I7: =TCO!G$9+TCO!G$10 -> 1767524.644 | J7: 1767524.644 | K7: =IF(ISERR(Faktory!$D$9*'Parametre - Agendové IS'!D6),"-",Faktory!$D$9*'Parametre - Agendové IS'!D6) -> 0 | L7: =IF(ISERR(Faktory!$D$9*'Parametre - Agendové IS'!E6),"-",Faktory!$D$9*'Parametre - Agendové IS'!E6) -> 0 | M7: =IF(ISERR(L7-K7),"-",L7-K7) -> 0 | N7: =IF(ISERR(Faktory!$D$7*'Parametre - Agendové IS'!D6*'Parametre - Agendové IS'!D26*'Parametre - Agendové IS'!D46),"-",Faktory!$D$7*'Parametre - Agendové IS'!D6*'Parametre - Agendové IS'!D26*'Parametre - Agendové IS'!D46) -> 4239000 | O7: =IF(ISERR(Faktory!$D$7*'Parametre - Agendové IS'!E6*'Parametre - Agendové IS'!E26*'Parametre - Agendové IS'!E46),"-",Faktory!$D$7*'Parametre - Agendové IS'!E6*'Parametre - Agendové IS'!E26*'Parametre - Agendové IS'!E46) -> 235500 | P7: =IF(ISERR(O7-N7),"-",O7-N7) -> -4003500 | Q7: 4239000 | R7: 2907513.988 | S7: -1331486.012
A8: t5 | B8: =TCO!H$21 -> 0 | C8: =TCO!H$11+TCO!H$12 -> 400489.344 | D8: 400489.344 | E8: =TCO!H$20 -> 0 | F8: =TCO!H$7+TCO!H$8 -> 504000 | G8: 504000 | H8: =TCO!H$24-(TCO!H$20+TCO!H$21) -> 0 | I8: =TCO!H$9+TCO!H$10 -> 802524.6443 | J8: 802524.6443 | K8: =IF(ISERR(Faktory!$D$9*'Parametre - Agendové IS'!D7),"-",Faktory!$D$9*'Parametre - Agendové IS'!D7) -> 0 | L8: =IF(ISERR(Faktory!$D$9*'Parametre - Agendové IS'!E7),"-",Faktory!$D$9*'Parametre - Agendové IS'!E7) -> 0 | M8: =IF(ISERR(L8-K8),"-",L8-K8) -> 0 | N8: =IF(ISERR(Faktory!$D$7*'Parametre - Agendové IS'!D7*'Parametre - Agendové IS'!D27*'Parametre - Agendové IS'!D47),"-",Faktory!$D$7*'Parametre - Agendové IS'!D7*'Parametre - Agendové IS'!D27*'Parametre - Agendové IS'!D47) -> 4239000 | O8: =IF(ISERR(Faktory!$D$7*'Parametre - Agendové IS'!E7*'Parametre - Agendové IS'!E27*'Parametre - Agendové IS'!E47),"-",Faktory!$D$7*'Parametre - Agendové IS'!E7*'Parametre - Agendové IS'!E27*'Parametre - Agendové IS'!E47) -> 235500 | P8: =IF(ISERR(O8-N8),"-",O8-N8) -> -4003500 | Q8: 4239000 | R8: 1942513.988 | S8: -2296486.012
A9: t6 | B9: =TCO!I$21 -> 0 | C9: =TCO!I$11+TCO!I$12 -> 400489.344 | D9: 400489.344 | E9: =TCO!I$20 -> 0 | F9: =TCO!I$7+TCO!I$8 -> 504000 | G9: 504000 | H9: =TCO!I$24-(TCO!I$20+TCO!I$21) -> 0 | I9: =TCO!I$9+TCO!I$10 -> 732524.6443 | J9: 732524.6443 | K9: =IF(ISERR(Faktory!$D$9*'Parametre - Agendové IS'!D8),"-",Faktory!$D$9*'Parametre - Agendové IS'!D8) -> 0 | L9: =IF(ISERR(Faktory!$D$9*'Parametre - Agendové IS'!E8),"-",Faktory!$D$9*'Parametre - Agendové IS'!E8) -> 0 | M9: =IF(ISERR(L9-K9),"-",L9-K9) -> 0 | N9: =IF(ISERR(Faktory!$D$7*'Parametre - Agendové IS'!D8*'Parametre - Agendové IS'!D28*'Parametre - Agendové IS'!D48),"-",Faktory!$D$7*'Parametre - Agendové IS'!D8*'Parametre - Agendové IS'!D28*'Parametre - Agendové IS'!D48) -> 4239000 | O9: =IF(ISERR(Faktory!$D$7*'Parametre - Agendové IS'!E8*'Parametre - Agendové IS'!E28*'Parametre - Agendové IS'!E48),"-",Faktory!$D$7*'Parametre - Agendové IS'!E8*'Parametre - Agendové IS'!E28*'Parametre - Agendové IS'!E48) -> 235500 | P9: =IF(ISERR(O9-N9),"-",O9-N9) -> -4003500 | Q9: 4239000 | R9: 1872513.988 | S9: -2366486.012
A10: t7 | B10: =TCO!J$21 -> 0 | C10: =TCO!J$11+TCO!J$12 -> 400489.344 | D10: 400489.344 | E10: =TCO!J$20 -> 0 | F10: =TCO!J$7+TCO!J$8 -> 504000 | G10: 504000 | H10: =TCO!J$24-(TCO!J$20+TCO!J$21) -> 0 | I10: =TCO!J$9+TCO!J$10 -> 677524.6443 | J10: 677524.6443 | K10: =IF(ISERR(Faktory!$D$9*'Parametre - Agendové IS'!D9),"-",Faktory!$D$9*'Parametre - Agendové IS'!D9) -> 0 | L10: =IF(ISERR(Faktory!$D$9*'Parametre - Agendové IS'!E9),"-",Faktory!$D$9*'Parametre - Agendové IS'!E9) -> 0 | M10: 0 | N10: =IF(ISERR(Faktory!$D$7*'Parametre - Agendové IS'!D9*'Parametre - Agendové IS'!D29*'Parametre - Agendové IS'!D49),"-",Faktory!$D$7*'Parametre - Agendové IS'!D9*'Parametre - Agendové IS'!D29*'Parametre - Agendové IS'!D49) -> 4239000 | O10: =IF(ISERR(Faktory!$D$7*'Parametre - Agendové IS'!E9*'Parametre - Agendové IS'!E29*'Parametre - Agendové IS'!E49),"-",Faktory!$D$7*'Parametre - Agendové IS'!E9*'Parametre - Agendové IS'!E29*'Parametre - Agendové IS'!E49) -> 235500 | P10: -4003500 | Q10: 4239000 | R10: 1817513.988 | S10: -2421486.012
A11: t8 | B11: =TCO!K$21 -> 0 | C11: =TCO!K$11+TCO!K$12 -> 400489.344 | D11: 400489.344 | E11: =TCO!K$20 -> 0 | F11: =TCO!K$7+TCO!K$8 -> 504000 | G11: 504000 | H11: =TCO!K$24-(TCO!K$20+TCO!K$21) -> 0 | I11: =TCO!K$9+TCO!K$10 -> 567524.6443 | J11: 567524.6443 | K11: =IF(ISERR(Faktory!$D$9*'Parametre - Agendové IS'!D10),"-",Faktory!$D$9*'Parametre - Agendové IS'!D10) -> 0 | L11: =IF(ISERR(Faktory!$D$9*'Parametre - Agendové IS'!E10),"-",Faktory!$D$9*'Parametre - Agendové IS'!E10) -> 0 | M11: 0 | N11: =IF(ISERR(Faktory!$D$7*'Parametre - Agendové IS'!D10*'Parametre - Agendové IS'!D30*'Parametre - Agendové IS'!D50),"-",Faktory!$D$7*'Parametre - Agendové IS'!D10*'Parametre - Agendové IS'!D30*'Parametre - Agendové IS'!D50) -> 4239000 | O11: =IF(ISERR(Faktory!$D$7*'Parametre - Agendové IS'!E10*'Parametre - Agendové IS'!E30*'Parametre - Agendové IS'!E50),"-",Faktory!$D$7*'Parametre - Agendové IS'!E10*'Parametre - Agendové IS'!E30*'Parametre - Agendové IS'!E50) -> 235500 | P11: -4003500 | Q11: 4239000 | R11: 1707513.988 | S11: -2531486.012
A12: t9 | B12: =TCO!L$21 -> 0 | C12: =TCO!L$11+TCO!L$12 -> 400489.344 | D12: 400489.344 | E12: =TCO!L$20 -> 0 | F12: =TCO!L$7+TCO!L$8 -> 504000 | G12: 504000 | H12: =TCO!L$24-(TCO!L$20+TCO!L$21) -> 0 | I12: =TCO!L$9+TCO!L$10 -> 567524.6443 | J12: 567524.6443 | K12: =IF(ISERR(Faktory!$D$9*'Parametre - Agendové IS'!D11),"-",Faktory!$D$9*'Parametre - Agendové IS'!D11) -> 0 | L12: =IF(ISERR(Faktory!$D$9*'Parametre - Agendové IS'!E11),"-",Faktory!$D$9*'Parametre - Agendové IS'!E11) -> 0 | M12: 0 | N12: =IF(ISERR(Faktory!$D$7*'Parametre - Agendové IS'!D11*'Parametre - Agendové IS'!D31*'Parametre - Agendové IS'!D51),"-",Faktory!$D$7*'Parametre - Agendové IS'!D11*'Parametre - Agendové IS'!D31*'Parametre - Agendové IS'!D51) -> 4239000 | O12: =IF(ISERR(Faktory!$D$7*'Parametre - Agendové IS'!E11*'Parametre - Agendové IS'!E31*'Parametre - Agendové IS'!E51),"-",Faktory!$D$7*'Parametre - Agendové IS'!E11*'Parametre - Agendové IS'!E31*'Parametre - Agendové IS'!E51) -> 235500 | P12: -4003500 | Q12: 4239000 | R12: 1707513.988 | S12: -2531486.012
A13: t10 | B13: =TCO!M$21 -> 0 | C13: =TCO!M$11+TCO!M$12 -> 400489.344 | D13: 400489.344 | E13: =TCO!M$20 -> 0 | F13: =TCO!M$7+TCO!M$8 -> 504000 | G13: 504000 | H13: =TCO!M$24-(TCO!M$20+TCO!M$21) -> 0 | I13: =TCO!M$9+TCO!M$10 -> 567524.6443 | J13: 567524.6443 | K13: =IF(ISERR(Faktory!$D$9*'Parametre - Agendové IS'!D12),"-",Faktory!$D$9*'Parametre - Agendové IS'!D12) -> 0 | L13: =IF(ISERR(Faktory!$D$9*'Parametre - Agendové IS'!E12),"-",Faktory!$D$9*'Parametre - Agendové IS'!E12) -> 0 | M13: 0 | N13: =IF(ISERR(Faktory!$D$7*'Parametre - Agendové IS'!D12*'Parametre - Agendové IS'!D32*'Parametre - Agendové IS'!D52),"-",Faktory!$D$7*'Parametre - Agendové IS'!D12*'Parametre - Agendové IS'!D32*'Parametre - Agendové IS'!D52) -> 4239000 | O13: =IF(ISERR(Faktory!$D$7*'Parametre - Agendové IS'!E12*'Parametre - Agendové IS'!E32*'Parametre - Agendové IS'!E52),"-",Faktory!$D$7*'Parametre - Agendové IS'!E12*'Parametre - Agendové IS'!E32*'Parametre - Agendové IS'!E52) -> 235500 | P13: -4003500 | Q13: 4239000 | R13: 1707513.988 | S13: -2531486.012
P14: SPOLU | Q14: =SUM(Q4:Q13) -> 29673000 | R14: =SUM(R4:R13) -> 27469528.55 | S14: =SUM(S4:S13) -> -2203471.453
A15: * | B15: Všetky výdavkové položky sú automaticky vypočítané na základe údajov uvedených v záložkách TCO, spotrebované cloudové služby a Parametre - Agendové IS

Sheet Spotrebované cloudové služby
D1: SPOLU | G1: cloudová služba 1 | I1: cloudová služba 2 | K1: cloudová služba 3 | M1: cloudová služba N
A2: Parameter | B2: Jednotka | C2: Obdobie | D2: Alternat. 1 | E2: Alternat. 2 | F2: rozdiel | G2: Alternat. 1 | H2: Alternat. 2 | I2: Alternat. 1 | J2: Alternat. 2 | K2: Alternat. 1 | L2: Alternat. 2 | M2: Alternat. 1 | N2: Alternat. 2
A3: Spotrebovávané cloudové služby Parameter je vyhodnocovaný ako úspora z prevádzky (v časti prínosy) | B3: EUR | C3: t1 | D3: =SUM(G3,I3,K3,M3) -> 0 | E3: =SUM(H3,J3,L3,N3) -> 0 | F3: =E3-D3 -> 0
C4: t2 | D4: =SUM(G4,I4,K4,M4) -> 0 | E4: =SUM(H4,J4,L4,N4) -> 0 | F4: =E4-D4 -> 0
C5: t3 | D5: 0 | E5: 0 | F5: 0
C6: t4 | D6: 0 | E6: 0 | F6: 0
C7: t5 | D7: 0 | E7: 0 | F7: 0
C8: t6 | D8: 0 | E8: 0 | F8: 0
C9: t7 | D9: 0 | E9: 0 | F9: 0
C10: t8 | D10: 0 | E10: 0 | F10: 0
C11: t9 | D11: 0 | E11: 0 | F11: 0
C12: t10 | D12: 0 | E12: 0 | F12: 0

Sheet Parametre - Agendové IS
D1: SPOLU | G1: Skupina služieb 1 | I1: Skupina služieb 2 | K1: Skupina služieb 3 | M1: Skupina služieb N | O1: % zmena
A2: Parameter | B2: Jednotka | C2: Obdobie | D2: Alternat. 1 | E2: Alternat. 2 | F2: rozdiel | G2: Alternat. 1 | H2: Alternat. 2 | I2: Alternat. 1 | J2: Alternat. 2 | K2: Alternat. 1 | L2: Alternat. 2 | M2: Alternat. 1 | N2: Alternat. 2
A3: Počet podaní | B3: počet / rok | C3: t1 | D3: =SUM(G3,I3,K3,M3) -> 0 | E3: =SUM(H3,J3,L3,N3)+SUM(H3,J3,L3,N3)*$O$3 -> 0 | F3: =E3-D3 -> 0 | O3: ='Analyza citlivosti - AgendovéIS'!B2 -> 0
C4: t2 | D4: =SUM(G4,I4,K4,M4) -> 0 | E4: 0 | F4: =E4-D4 -> 0
C5: t3 | D5: 0 | E5: 0 | F5: 0
C6: t4 | D6: 300000 | E6: 50000 | F6: -250000 | G6: 300000 | H6: 50000
C7: t5 | D7: 300000 | E7: 50000 | F7: -250000 | G7: 300000 | H7: 50000
C8: t6 | D8: 300000 | E8: 50000 | F8: -250000 | G8: 300000 | H8: 50000
C9: t7 | D9: 300000 | E9: 50000 | F9: -250000 | G9: 300000 | H9: 50000
C10: t8 | D10: 300000 | E10: 50000 | F10: -250000 | G10: 300000 | H10: 50000
C11: t9 | D11: 300000 | E11: 50000 | F11: -250000 | G11: 300000 | H11: 50000
C12: t10 | D12: 300000 | E12: 50000 | F12: -250000 | G12: 300000 | H12: 50000
A13: Výška administratívneho poplatku | B13: EUR | C13: t1 | D13: =IF(ISERR((G13*G3+I13*I3+K13*K3+M13*M3)/SUM(G3,I3,K3,M3)),"-",(G13*G3+I13*I3+K13*K3+M13*M3)/SUM(G3,I3,K3,M3)) -> - | E13: =IF(ISERR((H13*H3+J13*J3+L13*L3+N13*N3)/SUM(H3,J3,L3,N3)+((H13*H3+J13*J3+L13*L3+N13*N3)/SUM(H3,J3,L3,N3))*$O$13),"-",(H13*H3+J13*J3+L13*L3+N13*N3)/SUM(H3,J3,L3,N3)+((H13*H3+J13*J3+L13*L3+N13*N3)/SUM(H3,J3,L3,N3))*$O$13) -> - | F13: =IF(ISERR(E13-D13),"-",E13-D13) -> - | O13: ='Analyza citlivosti - AgendovéIS'!B4 -> 0
C14: t2 | D14: - | E14: - | F14: =IF(ISERR(E14-D14),"-",E14-D14) -> -
C15: t3 | D15: - | E15: - | F15: -
C16: t4 | D16: 0 | E16: 0 | F16: 0
C17: t5 | D17: 0 | E17: 0 | F17: 0
C18: t6 | D18: 0 | E18: 0 | F18: 0
C19: t7 | D19: 0 | E19: 0 | F19: 0
C20: t8 | D20: 0 | E20: 0 | F20: 0
C21: t9 | D21: 0 | E21: 0 | F21: 0
C22: t10 | D22: 0 | E22: 0 | F22: 0
A23: Trvanie spracovania podania | B23: hod. | C23: t1 | D23: =IF(ISERR((G23*G3+I23*I3+K23*K3+M23*M3)/SUM(G3,I3,K3,M3)),"-",(G23*G3+I23*I3+K23*K3+M23*M3)/SUM(G3,I3,K3,M3)) -> - | E23: =IF(ISERR((H23*H3+J23*J3+L23*L3+N23*N3)/SUM(H3,J3,L3,N3) + ((H23*H3+J23*J3+L23*L3+N23*N3)/SUM(H3,J3,L3,N3))*$O$23),"-",(H23*H3+J23*J3+L23*L3+N23*N3)/SUM(H3,J3,L3,N3)+ ((H23*H3+J23*J3+L23*L3+N23*N3)/SUM(H3,J3,L3,N3))*$O$23) -> - | F23: =IF(ISERR(E23-D23),"-",E23-D23) -> - | O23: ='Analyza citlivosti - AgendovéIS'!B6 -> 0
C24: t2 | D24: =IF(ISERR((G24*G4+I24*I4+K24*K4+M24*M4)/SUM(G4,I4,K4,M4)),"-",(G24*G4+I24*I4+K24*K4+M24*M4)/SUM(G4,I4,K4,M4)) -> - | E24: =IF(ISERR((H24*H4+J24*J4+L24*L4+N24*N4)/SUM(H4,J4,L4,N4) + ((H24*H4+J24*J4+L24*L4+N24*N4)/SUM(H4,J4,L4,N4))*$O$23),"-",(H24*H4+J24*J4+L24*L4+N24*N4)/SUM(H4,J4,L4,N4)+ ((H24*H4+J24*J4+L24*L4+N24*N4)/SUM(H4,J4,L4,N4))*$O$23) -> - | F24: =IF(ISERR(E24-D24),"-",E24-D24) -> -
C25: t3 | D25: - | E25: - | F25: -
C26: t4 | D26: 1.5 | E26: 0.5 | F26: -1 | G26: 1.5 | H26: 0.5
C27: t5 | D27: 1.5 | E27: 0.5 | F27: -1 | G27: 1.5 | H27: 0.5
C28: t6 | D28: 1.5 | E28: 0.5 | F28: -1 | G28: 1.5 | H28: 0.5
C29: t7 | D29: 1.5 | E29: 0.5 | F29: -1 | G29: 1.5 | H29: 0.5
C30: t8 | D30: 1.5 | E30: 0.5 | F30: -1 | G30: 1.5 | H30: 0.5
C31: t9 | D31: 1.5 | E31: 0.5 | F31: -1 | G31: 1.5 | H31: 0.5
C32: t10 | D32: 1.5 | E32: 0.5 | F32: -1 | G32: 1.5 | H32: 0.5
A33: Priemerný čas potrebný na vypracovanie a doručenie podania | B33: hod. | C33: t1 | D33: =IF(ISERR((G33*G3+I33*I3+K33*K3+M33*M3)/SUM(G3,I3,K3,M3)),"-",(G33*G3+I33*I3+K33*K3+M33*M3)/SUM(G3,I3,K3,M3)) -> - | E33: =IF(ISERR((H33*H3+J33*J3+L33*L3+N33*N3)/SUM(H3,J3,L3,N3)+((H33*H3+J33*J3+L33*L3+N33*N3)/SUM(H3,J3,L3,N3))*$O$33),"-",(H33*H3+J33*J3+L33*L3+N33*N3)/SUM(H3,J3,L3,N3)+((H33*H3+J33*J3+L33*L3+N33*N3)/SUM(H3,J3,L3,N3))*$O$33) -> - | F33: =IF(ISERR(E33-D33),"-",E33-D33) -> - | O33: ='Analyza citlivosti - AgendovéIS'!B8 -> 0
C34: t2 | D34: - | E34: - | F34: =IF(ISERR(E34-D34),"-",E34-D34) -> -
C35: t3 | D35: - | E35: - | F35: -
C36: t4 | D36: 0 | E36: 0 | F36: 0
C37: t5 | D37: 0 | E37: 0 | F37: 0
C38: t6 | D38: 0 | E38: 0 | F38: 0
C39: t7 | D39: 0 | E39: 0 | F39: 0
C40: t8 | D40: 0 | E40: 0 | F40: 0
C41: t9 | D41: 0 | E41: 0 | F41: 0
C42: t10 | D42: 0 | E42: 0 | F42: 0
A43: Počet zamestnancov vybavujúcich agendu | B43: počet | C43: t1 | D43: =IF(ISERR((G43*G3+I43*I3+K43*K3+M43*M3)/SUM(G3,I3,K3,M3)),"-",(G43*G3+I43*I3+K43*K3+M43*M3)/SUM(G3,I3,K3,M3)) -> - | E43: =IF(ISERR((H43*H3+J43*J3+L43*L3+N43*N3)/SUM(H3,J3,L3,N3)+((H43*H3+J43*J3+L43*L3+N43*N3)/SUM(H3,J3,L3,N3))*$O$43),"-",(H43*H3+J43*J3+L43*L3+N43*N3)/SUM(H3,J3,L3,N3)+((H43*H3+J43*J3+L43*L3+N43*N3)/SUM(H3,J3,L3,N3))*$O$43) -> - | F43: =IF(ISERR(E43-D43),"-",E43-D43) -> - | O43: ='Analyza citlivosti - AgendovéIS'!B10 -> 0
C44: t2 | D44: - | E44: - | F44: =IF(ISERR(E44-D44),"-",E44-D44) -> -
C45: t3 | D45: - | E45: - | F45: -
C46: t4 | D46: 1 | E46: 1 | F46: 0 | G46: 1 | H46: 1
C47: t5 | D47: 1 | E47: 1 | F47: 0 | G47: 1 | H47: 1
C48: t6 | D48: 1 | E48: 1 | F48: 0 | G48: 1 | H48: 1
C49: t7 | D49: 1 | E49: 1 | F49: 0 | G49: 1 | H49: 1
C50: t8 | D50: 1 | E50: 1 | F50: 0 | G50: 1 | H50: 1
C51: t9 | D51: 1 | E51: 1 | F51: 0 | G51: 1 | H51: 1
C52: t10 | D52: 1 | E52: 1 | F52: 0 | G52: 1 | H52: 1
A53: Kvalitatívne prínosy - úspora prevádzkových nákladov z migrácie do cloudu | B53: EUR | C53: t1 | D53: =SUM(G53,I53,K53,M53) -> 0 | E53: =SUM(H53,J53,L53,N53)+SUM(H53,J53,L53,N53)*$O$53 -> 0 | F53: =E53-D53 -> 0 | O53: ='Analyza citlivosti - AgendovéIS'!B12 -> 0
C54: t2 | D54: 0 | E54: 0 | F54: 0
C55: t3 | D55: 0 | E55: 0 | F55: 0
C56: t4 | D56: 0 | E56: =SUM(H56,J56,L56,N56)+SUM(H56,J56,L56,N56)*$O$53 -> 445335.6647 | F56: 445335.6647 | H56: =TCO!G13/(1-Prinosy!$C$6)*Prinosy!C12 -> 445335.6647
C57: t5 | D57: 0 | E57: 379336.4418 | F57: 379336.4418 | H57: =TCO!H13/(1-Prinosy!$C$6)*Prinosy!C13 -> 379336.4418
C58: t6 | D58: 0 | E58: 454726.1078 | F58: 454726.1078 | H58: =TCO!I13/(1-Prinosy!$C$6)*Prinosy!C14 -> 454726.1078
C59: t7 | D59: 0 | E59: 527337.9961 | F59: 527337.9961 | H59: =TCO!J13/(1-Prinosy!$C$6)*Prinosy!C15 -> 527337.9961
C60: t8 | D60: 0 | E60: 572449.8843 | F60: 572449.8843 | H60: =TCO!K13/(1-Prinosy!$C$6)*Prinosy!C16 -> 572449.8843
C61: t9 | D61: 0 | E61: 654228.4392 | F61: 654228.4392 | H61: =TCO!L13/(1-Prinosy!$C$6)*Prinosy!C17 -> 654228.4392
C62: t10 | D62: 0 | E62: 817785.549 | F62: 817785.549 | H62: =TCO!M13/(1-Prinosy!$C$6)*Prinosy!C18 -> 817785.549

Sheet TCO
A1: Celkové náklady na vlastníctvo (TCO)
A3: Počet používateľov :
D5: Rok
A6: P.č. | C6: Spolu | D6: t1 | E6: t2 | F6: t3 | G6: t4 | H6: t5 | I6: t6 | J6: t7 | K6: t8 | L6: t9 | M6: t10
A7: 1 | B7: SW produkty - sumár obstaranie | C7: =SUM(D7:M7) -> 1720000 | D7: ='TCO - SW'!$E5+'TCO - SW'!$E15 -> 1720000 | E7: ='TCO - SW'!$E6+'TCO - SW'!$E16 -> 0 | F7: ='TCO - SW'!$E7+'TCO - SW'!$E17 -> 0 | G7: ='TCO - SW'!$E8+'TCO - SW'!$E18 -> 0 | H7: ='TCO - SW'!$E9+'TCO - SW'!$E19 -> 0 | I7: ='TCO - SW'!$E10+'TCO - SW'!$E20 -> 0 | J7: ='TCO - SW'!$E11+'TCO - SW'!$E21 -> 0 | K7: ='TCO - SW'!$E12+'TCO - SW'!$E22 -> 0 | L7: ='TCO - SW'!$E13+'TCO - SW'!$E23 -> 0 | M7: ='TCO - SW'!$E14+'TCO - SW'!$E24 -> 0
B8: SW produkty - sumár prevádzka | C8: 3528000 | D8: ='TCO - SW'!$E58+'TCO - SW'!$E68 -> 0 | E8: ='TCO - SW'!$E59+'TCO - SW'!$E69 -> 0 | F8: ='TCO - SW'!$E60+'TCO - SW'!$E70 -> 0 | G8: ='TCO - SW'!$E61+'TCO - SW'!$E71 -> 504000 | H8: ='TCO - SW'!$E62+'TCO - SW'!$E72 -> 504000 | I8: ='TCO - SW'!$E63+'TCO - SW'!$E73 -> 504000 | J8: ='TCO - SW'!$E64+'TCO - SW'!$E74 -> 504000 | K8: ='TCO - SW'!$E65+'TCO - SW'!$E75 -> 504000 | L8: ='TCO - SW'!$E66+'TCO - SW'!$E76 -> 504000 | M8: ='TCO - SW'!$E67+'TCO - SW'!$E77 -> 504000
B9: Aplikácie - sumár obstaranie | C9: 6313762.885 | D9: ='TCO - SW'!$E26+'TCO - SW'!$E36+'TCO - SW'!$E46 -> 4159190.873 | E9: ='TCO - SW'!$E27+'TCO - SW'!$E37+'TCO - SW'!$E47 -> 1077286.006 | F9: ='TCO - SW'!$E28+'TCO - SW'!$E38+'TCO - SW'!$E48 -> 1077286.006 | G9: ='TCO - SW'!$E29+'TCO - SW'!$E39+'TCO - SW'!$E49 -> 0 | H9: ='TCO - SW'!$E30+'TCO - SW'!$E40+'TCO - SW'!$E50 -> 0 | I9: ='TCO - SW'!$E31+'TCO - SW'!$E41+'TCO - SW'!$E51 -> 0 | J9: ='TCO - SW'!$E32+'TCO - SW'!$E42+'TCO - SW'!$E52 -> 0 | K9: ='TCO - SW'!$E33+'TCO - SW'!$E43+'TCO - SW'!$E53 -> 0 | L9: ='TCO - SW'!$E34+'TCO - SW'!$E44+'TCO - SW'!$E54 -> 0 | M9: ='TCO - SW'!$E35+'TCO - SW'!$E45+'TCO - SW'!$E55 -> 0
B10: Aplikácie - sumár prevádzka | C10: 10574950.91 | D10: ='TCO - SW'!$E79+'TCO - SW'!$E89+'TCO - SW'!$E99+'TCO - SW'!$E109+'TCO - SW'!$E119 -> 58780.8 | E10: ='TCO - SW'!$E80+'TCO - SW'!$E90+'TCO - SW'!$E100+'TCO - SW'!$E110+'TCO - SW'!$E120 -> 2567561.6 | F10: ='TCO - SW'!$E81+'TCO - SW'!$E91+'TCO - SW'!$E101+'TCO - SW'!$E111+'TCO - SW'!$E121 -> 2265936 | G10: ='TCO - SW'!$E82+'TCO - SW'!$E92+'TCO - SW'!$E102+'TCO - SW'!$E112+'TCO - SW'!$E122 -> 1767524.644 | H10: ='TCO - SW'!$E83+'TCO - SW'!$E93+'TCO - SW'!$E103+'TCO - SW'!$E113+'TCO - SW'!$E123 -> 802524.6443 | I10: ='TCO - SW'!$E84+'TCO - SW'!$E94+'TCO - SW'!$E104+'TCO - SW'!$E114+'TCO - SW'!$E124 -> 732524.6443 | J10: ='TCO - SW'!$E85+'TCO - SW'!$E95+'TCO - SW'!$E105+'TCO - SW'!$E115+'TCO - SW'!$E125 -> 677524.6443 | K10: ='TCO - SW'!$E86+'TCO - SW'!$E96+'TCO - SW'!$E106+'TCO - SW'!$E116+'TCO - SW'!$E126 -> 567524.6443 | L10: ='TCO - SW'!$E87+'TCO - SW'!$E97+'TCO - SW'!$E107+'TCO - SW'!$E117+'TCO - SW'!$E127 -> 567524.6443 | M10: ='TCO - SW'!$E88+'TCO - SW'!$E98+'TCO - SW'!$E108+'TCO - SW'!$E118+'TCO - SW'!$E128 -> 567524.6443
A11: 2 | B11: HW sumár obstaranie | C11: 0 | D11: ='TCO - HW'!$E4+'TCO - HW'!$E14+'TCO - HW'!$E24 -> 0 | E11: ='TCO - HW'!$E5+'TCO - HW'!$E15+'TCO - HW'!$E25 -> 0 | F11: ='TCO - HW'!$E6+'TCO - HW'!$E16+'TCO - HW'!$E26 -> 0 | G11: ='TCO - HW'!$E7+'TCO - HW'!$E17+'TCO - HW'!$E27 -> 0 | H11: ='TCO - HW'!$E8+'TCO - HW'!$E18+'TCO - HW'!$E28 -> 0 | I11: ='TCO - HW'!$E9+'TCO - HW'!$E19+'TCO - HW'!$E29 -> 0 | J11: ='TCO - HW'!$E10+'TCO - HW'!$E20+'TCO - HW'!$E30 -> 0 | K11: ='TCO - HW'!$E11+'TCO - HW'!$E21+'TCO - HW'!$E31 -> 0 | L11: ='TCO - HW'!$E12+'TCO - HW'!$E22+'TCO - HW'!$E32 -> 0 | M11: ='TCO - HW'!$E13+'TCO - HW'!$E23+'TCO - HW'!$E33 -> 0
B12: HW sumár prevádzka | C12: 3684314.752 | D12: ='TCO - HW'!$E35+'TCO - HW'!$E45+'TCO - HW'!$E55+'TCO - HW'!$E65+'TCO - HW'!$E75 -> 53333.33333 | E12: ='TCO - HW'!$E36+'TCO - HW'!$E46+'TCO - HW'!$E56+'TCO - HW'!$E66+'TCO - HW'!$E76 -> 355733.3333 | F12: ='TCO - HW'!$E37+'TCO - HW'!$E47+'TCO - HW'!$E57+'TCO - HW'!$E67+'TCO - HW'!$E77 -> 471822.6773 | G12: ='TCO - HW'!$E38+'TCO - HW'!$E48+'TCO - HW'!$E58+'TCO - HW'!$E68+'TCO - HW'!$E78 -> 400489.344 | H12: ='TCO - HW'!$E39+'TCO - HW'!$E49+'TCO - HW'!$E59+'TCO - HW'!$E69+'TCO - HW'!$E79 -> 400489.344 | I12: ='TCO - HW'!$E40+'TCO - HW'!$E50+'TCO - HW'!$E60+'TCO - HW'!$E70+'TCO - HW'!$E80 -> 400489.344 | J12: ='TCO - HW'!$E41+'TCO - HW'!$E51+'TCO - HW'!$E61+'TCO - HW'!$E71+'TCO - HW'!$E81 -> 400489.344 | K12: ='TCO - HW'!$E42+'TCO - HW'!$E52+'TCO - HW'!$E62+'TCO - HW'!$E72+'TCO - HW'!$E82 -> 400489.344 | L12: ='TCO - HW'!$E43+'TCO - HW'!$E53+'TCO - HW'!$E63+'TCO - HW'!$E73+'TCO - HW'!$E83 -> 400489.344 | M12: ='TCO - HW'!$E44+'TCO - HW'!$E54+'TCO - HW'!$E64+'TCO - HW'!$E74+'TCO - HW'!$E84 -> 400489.344
B13: Spolu | C13: =SUM(C7:C12) -> 25821028.55 | D13: =SUM(D7:D12) -> 5991305.006 | E13: =SUM(E7:E12) -> 4000580.939 | F13: 3815044.683 | G13: 2672013.988 | H13: 1707013.988 | I13: 1637013.988 | J13: 1582013.988 | K13: 1472013.988 | L13: 1472013.988 | M13: 1472013.988
A16: Náklady na existujúce riešenie (pôvodné riešenie pred realizáciou projektu OP II), ktoré bolo nahradené
D18: Rok
A19: P.č. | C19: Spolu | D19: t1 | E19: t2 | F19: t3 | G19: t4 | H19: t5 | I19: t6 | J19: t7 | K19: t8 | L19: t9 | M19: t10
A20: 1 | B20: Náklady na dodávateľa spojené s prevádzkou SW | C20: =SUM(D20:M20) -> 0
A21: 2 | B21: Náklady na dodávateľa spojené s prevádzkou HW | C21: =SUM(D21:M21) -> 0
A22: 3 | B22: Personálne náklady* | C22: =SUM(D22:M22) -> 0
A23: 4 | B23: Náklady na priestory a energie | C23: =SUM(D23:M23) -> 0
B24: Spolu** | C24: =SUM(C20:C23) -> 0 | D24: =SUM(D20:D23) -> 0 | E24: =SUM(E20:E23) -> 0 | F24: 0 | G24: 0 | H24: 0 | I24: 0 | J24: 0 | K24: 0 | L24: 0 | M24: 0
A26: Poznámky:
A27: * | B27: Personálne náklady existujúceho riešenia - náklady na zamestnancov priamo vykonávajúcich podporu daného IKT
A28: ** | B28: V pripade riešenia podpory daného IKT formou outsourcingu, alebo(a) prenájmu , postačuje uviesť celkovú hodnotu, ak nie je možné výdavky štrukturovane rozdeliť

Sheet TCO - SW
A1: Náklady na obstaranie a prevádzku SW | E1: SPOLU | F1: MDM Rezortná zbernica | G1: MDM Portál | H1: MDM Dátový server
A2: Názov | B2: Účet/skupina výdavkov | C2: Kód EKO klasifikácie | D2: Obdobie
A3: Vytvorenie riešenia - obstaranie | E3: =E4+E25 -> 8033762.885 | F3: =F4+F25 -> 5623634.019 | G3: =G4+G25 -> 803376.2885 | H3: =H4+H25 -> 1606752.577
A4: SW produkty | E4: =SUM(E5:E24) -> 1720000 | F4: =SUM(F5:F24) -> 1204000 | G4: =SUM(G5:G24) -> 172000 | H4: =SUM(H5:H24) -> 344000
A5: Obstaranie, inštalácia SW produktu vrátane licencie k SW | B5: 013 Softvér | C5: 711003 | D5: t1 | E5: =SUM(F5:H5) -> 1720000 | F5: ='SW a aplikacie'!C15 -> 1204000 | G5: ='SW a aplikacie'!D15 -> 172000 | H5: ='SW a aplikacie'!E15 -> 344000
D6: t2 | E6: =SUM(F6:H6) -> 0
D7: t3 | E7: =SUM(F7:H7) -> 0
D8: t4 | E8: 0
D9: t5 | E9: 0
D10: t6 | E10: 0
D11: t7 | E11: 0
D12: t8 | E12: 0
D13: t9 | E13: 0
D14: t10 | E14: 0
A15: Obstaranie, inštalácia SW produktu vrátane licencie k SW | B15: 518 Ostatné služby | C15: 633013 | D15: t1 | E15: =SUM(F15:H15) -> 0
D16: t2 | E16: =SUM(F16:H16) -> 0
D17: t3 | E17: =SUM(F17:H17) -> 0
D18: t4 | E18: 0
D19: t5 | E19: 0
D20: t6 | E20: 0
D21: t7 | E21: 0
D22: t8 | E22: 0
D23: t9 | E23: 0
D24: t10 | E24: 0
A25: Aplikácie | E25: =SUM(E26:E55) -> 6313762.885 | F25: =SUM(F26:F55) -> 4419634.019 | G25: =SUM(G26:G55) -> 631376.2885 | H25: =SUM(H26:H55) -> 1262752.577
A26: Vytvorenie aplikácie | B26: 013 Softvér | C26: 711003 | D26: t1 | E26: =SUM(F26:H26) -> 3965194.206 | F26: ='SW a aplikacie'!C5+'SW a aplikacie'!C8 -> 2775635.944 | G26: ='SW a aplikacie'!D5+'SW a aplikacie'!D8 -> 396519.4206 | H26: ='SW a aplikacie'!E5+'SW a aplikacie'!E8 -> 793038.8412
D27: t2 | E27: =SUM(F27:H27) -> 0
D28: t3 | E28: =SUM(F28:H28) -> 0
D29: t4 | E29: 0
D30: t5 | E30: 0
D31: t6 | E31: 0
D32: t7 | E32: 0
D33: t8 | E33: 0
D34: t9 | E34: 0
D35: t10 | E35: 0
A36: Vytvorenie aplikácie | B36: 518 Ostatné služby | C36: 633013 | D36: t1 | E36: 193996.6667 | F36: ='SW a aplikacie'!C$21*1/3 -> 135797.6667 | G36: ='SW a aplikacie'!D$21*1/3 -> 19399.66667 | H36: ='SW a aplikacie'!E$21*1/3 -> 38799.33333
D37: t2 | E37: 193996.6667 | F37: ='SW a aplikacie'!C$21*1/3 -> 135797.6667 | G37: ='SW a aplikacie'!D$21*1/3 -> 19399.66667 | H37: ='SW a aplikacie'!E$21*1/3 -> 38799.33333
D38: t3 | E38: 193996.6667 | F38: ='SW a aplikacie'!C$21*1/3 -> 135797.6667 | G38: ='SW a aplikacie'!D$21*1/3 -> 19399.66667 | H38: ='SW a aplikacie'!E$21*1/3 -> 38799.33333
D39: t4 | E39: 0
D40: t5 | E40: 0
D41: t6 | E41: 0
D42: t7 | E42: 0
D43: t8 | E43: 0
D44: t9 | E44: 0
D45: t10 | E45: 0
A46: Školenia spojené so SW a aplikáciou | B46: 518 Ostatné služby | C46: 637001 | D46: t1 | E46: 0
D47: t2 | E47: 883289.3395 | F47: =('SW a aplikacie'!C14+'SW a aplikacie'!C11)*0.5 -> 618302.5376 | G47: =('SW a aplikacie'!D14+'SW a aplikacie'!D11)*0.5 -> 88328.93395 | H47: =('SW a aplikacie'!E14+'SW a aplikacie'!E11)*0.5 -> 176657.8679
D48: t3 | E48: 883289.3395 | F48: =('SW a aplikacie'!C14+'SW a aplikacie'!C11)*0.5 -> 618302.5376 | G48: =('SW a aplikacie'!D14+'SW a aplikacie'!D11)*0.5 -> 88328.93395 | H48: =('SW a aplikacie'!E14+'SW a aplikacie'!E11)*0.5 -> 176657.8679
D49: t4 | E49: 0
D50: t5 | E50: 0
D51: t6 | E51: 0
D52: t7 | E52: 0
D53: t8 | E53: 0
D54: t9 | E54: 0
D55: t10 | E55: 0
A56: Prevádzka vytvoreného riešenia | E56: =E57+E78 -> 14102950.91 | F56: =F57+F78 -> 11741065.64 | G56: =G57+G78 -> 787295.091 | H56: =H57+H78 -> 1574590.182
A57: SW produkty | E57: =SUM(E58:E77) -> 3528000 | F57: =SUM(F58:F77) -> 2469600 | G57: =SUM(G58:G77) -> 352800 | H57: =SUM(H58:H77) -> 705600
A58: Poplatky vlastníkovi SW produktu - údržba / support k licenciám | B58: 511 Opravy a udržiavanie | C58: 635009 | D58: t1 | E58: =SUM(F58:H58) -> 0
D59: t2 | E59: =SUM(F59:H59) -> 0
D60: t3 | E60: =SUM(F60:H60) -> 0
D61: t4 | E61: 504000 | F61: ='SW a aplikacie'!C$32/7 -> 352800 | G61: ='SW a aplikacie'!D$32/7 -> 50400 | H61: ='SW a aplikacie'!E$32/7 -> 100800
D62: t5 | E62: 504000 | F62: ='SW a aplikacie'!C$32/7 -> 352800 | G62: ='SW a aplikacie'!D$32/7 -> 50400 | H62: ='SW a aplikacie'!E$32/7 -> 100800
D63: t6 | E63: 504000 | F63: ='SW a aplikacie'!C$32/7 -> 352800 | G63: ='SW a aplikacie'!D$32/7 -> 50400 | H63: ='SW a aplikacie'!E$32/7 -> 100800
D64: t7 | E64: 504000 | F64: ='SW a aplikacie'!C$32/7 -> 352800 | G64: ='SW a aplikacie'!D$32/7 -> 50400 | H64: ='SW a aplikacie'!E$32/7 -> 100800
D65: t8 | E65: 504000 | F65: ='SW a aplikacie'!C$32/7 -> 352800 | G65: ='SW a aplikacie'!D$32/7 -> 50400 | H65: ='SW a aplikacie'!E$32/7 -> 100800
D66: t9 | E66: 504000 | F66: ='SW a aplikacie'!C$32/7 -> 352800 | G66: ='SW a aplikacie'!D$32/7 -> 50400 | H66: ='SW a aplikacie'!E$32/7 -> 100800
D67: t10 | E67: 504000 | F67: ='SW a aplikacie'!C$32/7 -> 352800 | G67: ='SW a aplikacie'!D$32/7 -> 50400 | H67: ='SW a aplikacie'!E$32/7 -> 100800
A68: Upgrade SW produktu | B68: 013 Softvér | C68: 718006 | D68: t1 | E68: 0
D69: t2 | E69: 0
D70: t3 | E70: 0
D71: t4 | E71: 0
D72: t5 | E72: 0
D73: t6 | E73: 0
D74: t7 | E74: 0
D75: t8 | E75: 0
D76: t9 | E76: 0
D77: t10 | E77: 0
A78: Aplikácie | E78: =SUM(E79:E128) -> 10574950.91 | F78: =SUM(F79:F128) -> 9271465.637 | G78: =SUM(G79:G128) -> 434495.091 | H78: =SUM(H79:H128) -> 868990.1819
A79: Poplatky za udržanie funkčnosti / dostupnosti aplikácie / update | B79: 511 Opravy a udržiavanie | C79: 635009 | D79: t1 | E79: =SUM(F79:H79) -> 0
D80: t2 | E80: =SUM(F80:H80) -> 0
D81: t3 | E81: =SUM(F81:H81) -> 0
D82: t4 | E82: 371588.6443 | F82: ='SW a aplikacie'!C$35/7 -> 260112.051 | G82: ='SW a aplikacie'!D$35/7 -> 37158.86442 | H82: ='SW a aplikacie'!E$35/7 -> 74317.72885
D83: t5 | E83: 371588.6443 | F83: ='SW a aplikacie'!C$35/7 -> 260112.051 | G83: ='SW a aplikacie'!D$35/7 -> 37158.86442 | H83: ='SW a aplikacie'!E$35/7 -> 74317.72885
D84: t6 | E84: 371588.6443 | F84: ='SW a aplikacie'!C$35/7 -> 260112.051 | G84: ='SW a aplikacie'!D$35/7 -> 37158.86442 | H84: ='SW a aplikacie'!E$35/7 -> 74317.72885
D85: t7 | E85: 371588.6443 | F85: ='SW a aplikacie'!C$35/7 -> 260112.051 | G85: ='SW a aplikacie'!D$35/7 -> 37158.86442 | H85: ='SW a aplikacie'!E$35/7 -> 74317.72885
D86: t8 | E86: 371588.6443 | F86: ='SW a aplikacie'!C$35/7 -> 260112.051 | G86: ='SW a aplikacie'!D$35/7 -> 37158.86442 | H86: ='SW a aplikacie'!E$35/7 -> 74317.72885
D87: t9 | E87: 371588.6443 | F87: ='SW a aplikacie'!C$35/7 -> 260112.051 | G87: ='SW a aplikacie'!D$35/7 -> 37158.86442 | H87: ='SW a aplikacie'!E$35/7 -> 74317.72885
D88: t10 | E88: 371588.6443 | F88: ='SW a aplikacie'!C$35/7 -> 260112.051 | G88: ='SW a aplikacie'!D$35/7 -> 37158.86442 | H88: ='SW a aplikacie'!E$35/7 -> 74317.72885
A89: Aplikačná podpora / helpdesk | B89: 518 Ostatné služby | C89: 637005 | D89: t1 | E89: 0
D90: t2 | E90: 0
D91: t3 | E91: 0
D92: t4 | E92: 0
D93: t5 | E93: 0
D94: t6 | E94: 0
D95: t7 | E95: 0
D96: t8 | E96: 0
D97: t9 | E97: 0
D98: t10 | E98: 0
A99: Rozvoj - doplnenie funkcionality aplikácie / upgrade | B99: 013 Softvér | C99: 718006 | D99: t1 | E99: 0 | F99: =SUMIF(Registre!$Q$4:$Q$63,'TCO - SW'!D99,Registre!$P$4:$P$40) -> 0
D100: t2 | E100: 2450000 | F100: =SUMIF(Registre!$Q$4:$Q$63,'TCO - SW'!D100,Registre!$P$4:$P$40) -> 2450000
D101: t3 | E101: 2070000 | F101: =SUMIF(Registre!$Q$4:$Q$63,'TCO - SW'!D101,Registre!$P$4:$P$40) -> 2070000
D102: t4 | E102: 1200000 | F102: =SUMIF(Registre!$Q$4:$Q$63,'TCO - SW'!D102,Registre!$P$4:$P$40) -> 1200000
D103: t5 | E103: 235000 | F103: =SUMIF(Registre!$Q$4:$Q$63,'TCO - SW'!D103,Registre!$P$4:$P$40) -> 235000
D104: t6 | E104: 165000 | F104: =SUMIF(Registre!$Q$4:$Q$63,'TCO - SW'!D104,Registre!$P$4:$P$40) -> 165000
D105: t7 | E105: 110000 | F105: =SUMIF(Registre!$Q$4:$Q$63,'TCO - SW'!D105,Registre!$P$4:$P$40) -> 110000
D106: t8 | E106: 0 | F106: =SUMIF(Registre!$Q$4:$Q$63,'TCO - SW'!D106,Registre!$P$4:$P$40) -> 0
D107: t9 | E107: 0 | F107: =SUMIF(Registre!$Q$4:$Q$63,'TCO - SW'!D107,Registre!$P$4:$P$40) -> 0
D108: t10 | E108: 0 | F108: =SUMIF(Registre!$Q$4:$Q$63,'TCO - SW'!D108,Registre!$P$4:$P$40) -> 0
A109: Personálne náklady spojené s prevádzkou SW produktu a aplikácie | B109: 521 Mzdové výdavky | D109: t1 | E109: 58780.8 | F109: =3*260*8*Faktory!$D$7*'Štandardné aktivity'!$D$22 -> 41146.56 | G109: =3*260*8*Faktory!$D$7*'Štandardné aktivity'!$D$23 -> 5878.08 | H109: =3*260*8*Faktory!$D$7*'Štandardné aktivity'!$D$24 -> 11756.16
D110: t2 | E110: 117561.6 | F110: =6*260*8*Faktory!$D$7*'Štandardné aktivity'!$D$22 -> 82293.12 | G110: =6*260*8*Faktory!$D$7*'Štandardné aktivity'!$D$23 -> 11756.16 | H110: =6*260*8*Faktory!$D$7*'Štandardné aktivity'!$D$24 -> 23512.32
D111: t3 | E111: 195936 | F111: =10*260*8*Faktory!$D$7*'Štandardné aktivity'!$D$22 -> 137155.2 | G111: =10*260*8*Faktory!$D$7*'Štandardné aktivity'!$D$23 -> 19593.6 | H111: =10*260*8*Faktory!$D$7*'Štandardné aktivity'!$D$24 -> 39187.2
D112: t4 | E112: 195936 | F112: ='SW a aplikacie'!$C$33/7 -> 137155.2 | G112: =10*260*8*Faktory!$D$7*'Štandardné aktivity'!$D$23 -> 19593.6 | H112: =10*260*8*Faktory!$D$7*'Štandardné aktivity'!$D$24 -> 39187.2
D113: t5 | E113: 195936 | F113: ='SW a aplikacie'!$C$33/7 -> 137155.2 | G113: =10*260*8*Faktory!$D$7*'Štandardné aktivity'!$D$23 -> 19593.6 | H113: =10*260*8*Faktory!$D$7*'Štandardné aktivity'!$D$24 -> 39187.2
D114: t6 | E114: 195936 | F114: ='SW a aplikacie'!$C$33/7 -> 137155.2 | G114: =10*260*8*Faktory!$D$7*'Štandardné aktivity'!$D$23 -> 19593.6 | H114: =10*260*8*Faktory!$D$7*'Štandardné aktivity'!$D$24 -> 39187.2
D115: t7 | E115: 195936 | F115: ='SW a aplikacie'!$C$33/7 -> 137155.2 | G115: =10*260*8*Faktory!$D$7*'Štandardné aktivity'!$D$23 -> 19593.6 | H115: =10*260*8*Faktory!$D$7*'Štandardné aktivity'!$D$24 -> 39187.2
D116: t8 | E116: 195936 | F116: ='SW a aplikacie'!$C$33/7 -> 137155.2 | G116: =10*260*8*Faktory!$D$7*'Štandardné aktivity'!$D$23 -> 19593.6 | H116: =10*260*8*Faktory!$D$7*'Štandardné aktivity'!$D$24 -> 39187.2
D117: t9 | E117: 195936 | F117: ='SW a aplikacie'!$C$33/7 -> 137155.2 | G117: =10*260*8*Faktory!$D$7*'Štandardné aktivity'!$D$23 -> 19593.6 | H117: =10*260*8*Faktory!$D$7*'Štandardné aktivity'!$D$24 -> 39187.2
D118: t10 | E118: 195936 | F118: ='SW a aplikacie'!$C$33/7 -> 137155.2 | G118: =10*260*8*Faktory!$D$7*'Štandardné aktivity'!$D$23 -> 19593.6 | H118: =10*260*8*Faktory!$D$7*'Štandardné aktivity'!$D$24 -> 39187.2
A119: Školenia spojené so SW a aplikáciou | B119: 518 Ostatné služby | C119: 637001 | D119: t1 | E119: 0
D120: t2 | E120: 0
D121: t3 | E121: 0
D122: t4 | E122: 0
D123: t5 | E123: 0
D124: t6 | E124: 0
D125: t7 | E125: 0
D126: t8 | E126: 0
D127: t9 | E127: 0
D128: t10 | E128: 0

Sheet TCO - HW
A1: Náklady na obstaranie a prevádzku HW | E1: SPOLU | F1: eGov služba - VM pre portál - produkcia | G1: eGov služba - VM pre integračná platforma - produkcia | H1: eGov služba - VM pre DB server (všetky prostredia) | I1: eGov služba - VM pre testovacie a školiace prostredia | J1: eGov služba - storage SAN VM | K1: eGov služba - storage so zálohovaním, DB priestory | L1: eGov služba - storage so zálohovaním, DB priestory | M1: Projektové vývojové prostredie | N1: Výkon - návrh, inštalácia a prevádzka cloudu | O1: HW položka N
A2: Názov | B2: Účet/skupina výdavkov | C2: Kód EKO klasifikácie | D2: Obdobie
A3: Obstaranie | E3: =SUM(E4:E33) -> 0 | F3: =SUM(F4:F33) -> 0 | G3: =SUM(G4:G33) -> 0 | H3: =SUM(H4:H33) -> 0 | I3: 0 | J3: 0 | K3: 0 | L3: 0 | M3: 0 | N3: 0 | O3: =SUM(O4:O33) -> 0
A4: Nákup, inštalácia a sprevádzkovanie HW vrátane systémového SW | B4: 022 Samostatné hnuteľné veci a súbory hnuteľných vecí | C4: 713002 | D4: t1 | E4: =SUM(F4:O4) -> 0
D5: t2 | E5: 0
D6: t3 | E6: 0
D7: t4 | E7: 0
D8: t5 | E8: 0
D9: t6 | E9: 0
D10: t7 | E10: 0
D11: t8 | E11: 0
D12: t9 | E12: 0
D13: t10 | E13: 0
A14: Nákup, inštalácia a sprevádzkovanie HW vrátane systémového SW | B14: 112 Zásoby | C14: 633002 | D14: t1 | E14: 0
D15: t2 | E15: 0
D16: t3 | E16: 0
D17: t4 | E17: 0
D18: t5 | E18: 0
D19: t6 | E19: 0
D20: t7 | E20: 0
D21: t8 | E21: 0
D22: t9 | E22: 0
D23: t10 | E23: 0
A24: Školenia spojené s HW | B24: 518 Ostatné služby | C24: 637001 | D24: t1 | E24: 0
D25: t2 | E25: 0
D26: t3 | E26: 0
D27: t4 | E27: 0
D28: t5 | E28: 0
D29: t6 | E29: 0
D30: t7 | E30: 0
D31: t8 | E31: 0
D32: t9 | E32: 0
D33: t10 | E33: 0
A34: Prevádzka riešenia | E34: =SUM(E35:E84) -> 3684314.752 | F34: =SUM(F35:F84) -> 188029.44 | G34: =SUM(G35:G84) -> 188029.44 | H34: =SUM(H35:H84) -> 222481.92 | I34: 90173.952 | J34: 1209600 | K34: 1080000 | L34: 432000 | M34: 30000 | N34: 244000 | O34: =SUM(O35:O84) -> 0
A35: Poplatky dodávateľovi podpory HW - údržba/maintenance | B35: 511 Opravy a udržiavanie | C35: 635002 | D35: t1 | E35: =SUM(F35:O35) -> 0
D36: t2 | E36: 302400 | J36: ='TCO - Riešenie (bez HW a DB)'!B10/2 -> 134400 | K36: ='TCO - Riešenie (bez HW a DB)'!B11/2 -> 120000 | L36: ='TCO - Riešenie (bez HW a DB)'!B12/2 -> 48000
D37: t3 | E37: 418489.344 | F37: ='TCO - Riešenie (bez HW a DB)'!B6 -> 23503.68 | G37: ='TCO - Riešenie (bez HW a DB)'!B7 -> 23503.68 | H37: ='TCO - Riešenie (bez HW a DB)'!B8 -> 27810.24 | I37: ='TCO - Riešenie (bez HW a DB)'!B9 -> 11271.744 | J37: ='TCO - Riešenie (bez HW a DB)'!B10/2 -> 134400 | K37: ='TCO - Riešenie (bez HW a DB)'!B11/2 -> 120000 | L37: ='TCO - Riešenie (bez HW a DB)'!B12/2 -> 48000 | M37: ='TCO - Riešenie (bez HW a DB)'!B13 -> 30000
D38: t4 | E38: 388489.344 | F38: ='TCO - Riešenie (bez HW a DB)'!$D$6 -> 23503.68 | G38: ='TCO - Riešenie (bez HW a DB)'!$D$7 -> 23503.68 | H38: ='TCO - Riešenie (bez HW a DB)'!$D$8 -> 27810.24 | I38: ='TCO - Riešenie (bez HW a DB)'!$D$9 -> 11271.744 | J38: ='TCO - Riešenie (bez HW a DB)'!$D$10 -> 134400 | K38: ='TCO - Riešenie (bez HW a DB)'!$D$11 -> 120000 | L38: ='TCO - Riešenie (bez HW a DB)'!$D$12 -> 48000 | M38: ='TCO - Riešenie (bez HW a DB)'!$D$13 -> 0
D39: t5 | E39: 388489.344 | F39: ='TCO - Riešenie (bez HW a DB)'!$D$6 -> 23503.68 | G39: ='TCO - Riešenie (bez HW a DB)'!$D$7 -> 23503.68 | H39: ='TCO - Riešenie (bez HW a DB)'!$D$8 -> 27810.24 | I39: ='TCO - Riešenie (bez HW a DB)'!$D$9 -> 11271.744 | J39: ='TCO - Riešenie (bez HW a DB)'!$D$10 -> 134400 | K39: ='TCO - Riešenie (bez HW a DB)'!$D$11 -> 120000 | L39: ='TCO - Riešenie (bez HW a DB)'!$D$12 -> 48000 | M39: ='TCO - Riešenie (bez HW a DB)'!$D$13 -> 0
D40: t6 | E40: 388489.344 | F40: ='TCO - Riešenie (bez HW a DB)'!$D$6 -> 23503.68 | G40: ='TCO - Riešenie (bez HW a DB)'!$D$7 -> 23503.68 | H40: ='TCO - Riešenie (bez HW a DB)'!$D$8 -> 27810.24 | I40: ='TCO - Riešenie (bez HW a DB)'!$D$9 -> 11271.744 | J40: ='TCO - Riešenie (bez HW a DB)'!$D$10 -> 134400 | K40: ='TCO - Riešenie (bez HW a DB)'!$D$11 -> 120000 | L40: ='TCO - Riešenie (bez HW a DB)'!$D$12 -> 48000 | M40: ='TCO - Riešenie (bez HW a DB)'!$D$13 -> 0
D41: t7 | E41: 388489.344 | F41: ='TCO - Riešenie (bez HW a DB)'!$D$6 -> 23503.68 | G41: ='TCO - Riešenie (bez HW a DB)'!$D$7 -> 23503.68 | H41: ='TCO - Riešenie (bez HW a DB)'!$D$8 -> 27810.24 | I41: ='TCO - Riešenie (bez HW a DB)'!$D$9 -> 11271.744 | J41: ='TCO - Riešenie (bez HW a DB)'!$D$10 -> 134400 | K41: ='TCO - Riešenie (bez HW a DB)'!$D$11 -> 120000 | L41: ='TCO - Riešenie (bez HW a DB)'!$D$12 -> 48000 | M41: ='TCO - Riešenie (bez HW a DB)'!$D$13 -> 0
D42: t8 | E42: 388489.344 | F42: ='TCO - Riešenie (bez HW a DB)'!$D$6 -> 23503.68 | G42: ='TCO - Riešenie (bez HW a DB)'!$D$7 -> 23503.68 | H42: ='TCO - Riešenie (bez HW a DB)'!$D$8 -> 27810.24 | I42: ='TCO - Riešenie (bez HW a DB)'!$D$9 -> 11271.744 | J42: ='TCO - Riešenie (bez HW a DB)'!$D$10 -> 134400 | K42: ='TCO - Riešenie (bez HW a DB)'!$D$11 -> 120000 | L42: ='TCO - Riešenie (bez HW a DB)'!$D$12 -> 48000 | M42: ='TCO - Riešenie (bez HW a DB)'!$D$13 -> 0
D43: t9 | E43: 388489.344 | F43: ='TCO - Riešenie (bez HW a DB)'!$D$6 -> 23503.68 | G43: ='TCO - Riešenie (bez HW a DB)'!$D$7 -> 23503.68 | H43: ='TCO - Riešenie (bez HW a DB)'!$D$8 -> 27810.24 | I43: ='TCO - Riešenie (bez HW a DB)'!$D$9 -> 11271.744 | J43: ='TCO - Riešenie (bez HW a DB)'!$D$10 -> 134400 | K43: ='TCO - Riešenie (bez HW a DB)'!$D$11 -> 120000 | L43: ='TCO - Riešenie (bez HW a DB)'!$D$12 -> 48000 | M43: ='TCO - Riešenie (bez HW a DB)'!$D$13 -> 0
D44: t10 | E44: 388489.344 | F44: ='TCO - Riešenie (bez HW a DB)'!$D$6 -> 23503.68 | G44: ='TCO - Riešenie (bez HW a DB)'!$D$7 -> 23503.68 | H44: ='TCO - Riešenie (bez HW a DB)'!$D$8 -> 27810.24 | I44: ='TCO - Riešenie (bez HW a DB)'!$D$9 -> 11271.744 | J44: ='TCO - Riešenie (bez HW a DB)'!$D$10 -> 134400 | K44: ='TCO - Riešenie (bez HW a DB)'!$D$11 -> 120000 | L44: ='TCO - Riešenie (bez HW a DB)'!$D$12 -> 48000 | M44: ='TCO - Riešenie (bez HW a DB)'!$D$13 -> 0
A45: Upgrade HW | B45: 022 Samostatné hnuteľné veci a súbory hnuteľných vecí | C45: 718002 | D45: t1 | E45: 0
D46: t2 | E46: 0
D47: t3 | E47: 0
D48: t4 | E48: 0
D49: t5 | E49: 0
D50: t6 | E50: 0
D51: t7 | E51: 0
D52: t8 | E52: 0
D53: t9 | E53: 0
D54: t10 | E54: 0
A55: Náklady na priestory, energie | C55: 632001 | D55: t1 | E55: 0
D56: t2 | E56: 0
D57: t3 | E57: 0
D58: t4 | E58: 0
D59: t5 | E59: 0
D60: t6 | E60: 0
D61: t7 | E61: 0
D62: t8 | E62: 0
D63: t9 | E63: 0
D64: t10 | E64: 0
A65: Personálne náklady spojené s prevádzkou HW | C65: 632001 | D65: t1 | E65: 53333.33333 | N65: ='TCO - Riešenie (bez HW a DB)'!$B$14/3 -> 53333.33333
D66: t2 | E66: 53333.33333 | N66: ='TCO - Riešenie (bez HW a DB)'!$B$14/3 -> 53333.33333
D67: t3 | E67: 53333.33333 | N67: ='TCO - Riešenie (bez HW a DB)'!$B$14/3 -> 53333.33333
D68: t4 | E68: 12000 | N68: ='TCO - Riešenie (bez HW a DB)'!$D$14 -> 12000
D69: t5 | E69: 12000 | N69: ='TCO - Riešenie (bez HW a DB)'!$D$14 -> 12000
D70: t6 | E70: 12000 | N70: ='TCO - Riešenie (bez HW a DB)'!$D$14 -> 12000
D71: t7 | E71: 12000 | N71: ='TCO - Riešenie (bez HW a DB)'!$D$14 -> 12000
D72: t8 | E72: 12000 | N72: ='TCO - Riešenie (bez HW a DB)'!$D$14 -> 12000
D73: t9 | E73: 12000 | N73: ='TCO - Riešenie (bez HW a DB)'!$D$14 -> 12000
D74: t10 | E74: 12000 | N74: ='TCO - Riešenie (bez HW a DB)'!$D$14 -> 12000
A75: Školenia spojené s HW | B75: 518 Ostatné služby | C75: 637001 | D75: t1 | E75: 0
D76: t2 | E76: 0
D77: t3 | E77: 0
D78: t4 | E78: 0
D79: t5 | E79: 0
D80: t6 | E80: 0
D81: t7 | E81: 0
D82: t8 | E82: 0
D83: t9 | E83: 0
D84: t10 | E84: 0

Sheet Faktory
A1: Názov | B1: Popis | C1: Jednotka | D1: Hodnota
A2: Životnosť projektu (t) | B2: Referenčné obdobie je počet rokov, na ktorý sa vo finančnej analýze (analýze nákladov a výnosov) uvádzajú predpovede. Predpovede týkajúce sa budúceho trendu projektu by sa mali formulovať na obdobie, ktoré je primerané jeho ekonomicky užitočnému trvaniu a ktoré je dosť dlhé na to, aby zahŕňalo jeho pravdepodobné dlhodobejšie dosahy. Ide o časové obdobie, kedy je možné overiť úspešnosť investície. Trvanie sa mení podľa povahy investície. Referenčný časový horizont v rokoch podľa sektorov je uvedený podľa prílohy 1 Delegovaného nariadenia Komisie (EÚ) 480/2014 z 3. marca 2014, ktorým sa dopĺňa všeobecné nariadenie. | C2: rok | D2: 10
A3: Referenčná diskontná sadzba (i) | B3: Diskontná sadzba, ktorá sa má používať vo finančnej analýze má informovať investora o alternatívnych kapitálových nákladoch. Môže sa za ňu považovať ušlý výnos najlepšieho alternatívneho projektu. V prípade verejných investičných projektov spolufinancovaných z fondov sa stanovuje 4 % finančná diskontná sadzbu pre výpočet čistej súčasnej hodnoty investície v stálych cenách roku predloženia žiadosti o NFP. | C3: % | D3: 0.04
A5: Sociálna diskontná sadzba (r) | B5: Cieľom CBA je preukázať pri štrukturálne významných investíciách, že ekonomická čistá súčasná hodnota za dané obdobie a pri stanovenej sociálnej diskontnej sadzbe je kladná. | C5: % | D5: 0.05
B6: Diskontovanie odhadovaných nákladov a prínosov: keď sa odhadne tok ekonomických nákladov a prínosov, mala by sa uplatniť štandardná diskontovaná metodika peňažného toku pomocou sociálnej diskontnej sadzby
A7: Osobné náklady (Cper) | B7: Cper=(1011*1,358)/160, pričom 1373 EUR je priemerná hrubá mzda vo verejnej správe za 3. štvrťrok 2014. Odvody (SP, ZP, SF) sú 35,8%. Fond pracovnej doby na 1 mesiac je 160 hodín (čas na prestávku nie je započítaný). Osobné náklady sú faktorom prevádzkových variabilných nákladov. | C7: EUR/hod | D7: 9.42
A9: Materiálové náklady podania (Cpap) | B9: Cpap=Poštovné (0,83 EUR)+Tlač (0,02 EUR)+Papier (0,01 EUR)+Obálka (0,03 EUR). Materiálové náklady podania sú faktorom prevádzkových variabilných nákladov. | C9: EUR | D9: 0
A11: Priemerná mzda v NH | B11: Cperc | C11: EUR/hod | D11: =853.7/(22*8) -> 4.850568182
A13: t1 | B13: Prvý rok, ktorým výpočet CBA a TCO začína, rok začatia projektu | C13: rok | D13: 2017

Sheet Podklady>>>

Sheet TCO - Riešenie (bez HW a DB)
A1: Popis | B1: Náklady | E1: Predpoklady | F1: Požiadavky
B2: Obstaranie (roky 1 - 3) | C2: Rok prevádzky
C3: % | D3: € | F3: Počet | G3: Typ
A4: Infraštruktúra (požiadavky na umiestnenie v cloude)
A5: eGov služba - Pripojenie k sieťovým uzlom
A6: eGov služba - VM pre portál - produkcia | B6: =F6*'[1]eGovCloud - Parametre'!$B$9*'[1]eGovCloud - Parametre'!$B$7 -> 23503.68 | D6: =F6*'[1]eGovCloud - Parametre'!$B$9 -> 23503.68 | E6: Uvedené VM sú spolu porovnatelné s 1 server 4CPU - 8Cores - 128GB RAM | F6: 8 | G6: Virtual Machine
A7: eGov služba - VM pre integračná platforma - produkcia | B7: =F7*'[1]eGovCloud - Parametre'!$B$9*'[1]eGovCloud - Parametre'!$B$7 -> 23503.68 | D7: =F7*'[1]eGovCloud - Parametre'!$B$9 -> 23503.68 | E7: Uvedené VM sú spolu porovnatelné s 1 server 4CPU - 8Cores - 128GB RAM | F7: 8 | G7: Virtual Machine
A8: eGov služba - VM pre DB server (všetky prostredia) | B8: =F8*'[1]eGovCloud - Parametre'!$B$10*'[1]eGovCloud - Parametre'!$B$7 -> 27810.24 | D8: =F8*'[1]eGovCloud - Parametre'!$B$10 -> 27810.24 | E8: Uvedené VM sú spolu porovnatelné s 1 server 4CPU - 8Cores - 256GB RAM | F8: 4 | G8: Virtual Machine
A9: eGov služba - VM pre testovacie a školiace prostredia | B9: =F9*'[1]eGovCloud - Parametre'!$B$11*'[1]eGovCloud - Parametre'!$B$7*'[1]eGovCloud - Parametre'!$B$12 -> 11271.744 | D9: =F9*'[1]eGovCloud - Parametre'!$B$11*'[1]eGovCloud - Parametre'!$B$12 -> 11271.744 | E9: spolu porovnatelné s 1 server 4CPU - 8Cores - 128GB RAM, počet VM | F9: 12 | G9: Virtual Machine
A10: eGov služba - storage SAN VM | B10: =F10*'[1]eGovCloud - Parametre'!$B$13*'[1]eGovCloud - Parametre'!$B$8 -> 268800 | C10: ='TCO - Riešenie (bez HW a DB)'!B180 -> 0 | D10: =F10*'[1]eGovCloud - Parametre'!$B$13 -> 134400 | E10: nižšia úroven výkonu, minimálne zálohovanie | F10: ='[1]eGovCloud - Parametre'!B2*'[1]eGovCloud - Parametre'!$B$3*'[1]eGovCloud - Parametre'!$B$16 -> 112 | G10: GiB
A11: eGov služba - storage so zálohovaním, DB priestory | B11: =F11*'[1]eGovCloud - Parametre'!$B$15*'[1]eGovCloud - Parametre'!$B$8 -> 240000 | D11: =F11*'[1]eGovCloud - Parametre'!B15 -> 120000 | E11: vyššia kvalita - ostré živé dáta (relačné, OLAP, DB prevádzkové) | F11: 10 | G11: TiB
A12: eGov služba - storage so zálohovaním, DB priestory | B12: =F12*'[1]eGovCloud - Parametre'!B14*'[1]eGovCloud - Parametre'!B8 -> 96000 | D12: =F12*'[1]eGovCloud - Parametre'!B14 -> 48000 | E12: stredná kvalita (neprodučné prostredia, archív, súborový systém pre výmenu súborov) | F12: 10 | G12: TiB
A13: Projektové vývojové prostredie | B13: 30000 | D13: 0 | E13: Prostredie na vývoj riešenia
A14: Výkon - návrh, inštalácia a prevádzka cloudu | B14: =800*1*200 -> 160000 | D14: =600*0.1*200 -> 12000 | E14: 1 FTE vyšší pri nasadení, 0.1 FTE prevádzka ročne
A16: Databázová vrstva
A17: Licencie DB engine - MDM+BI Enterprise | B17: =F8*'[1]eGovCloud - Parametre'!B5*8 -> 320000 | C17: 0.2 | D17: =B17*C17 -> 64000 | E17: 32 Cores
A19: Riešenie
A20: Licencie MDM + Konsolidácia | B20: 900000 | C20: 0.2 | D20: =B20*C20 -> 180000 | E20: 10 dizajnérov, 100 užívateľov Prezentačného servera, Prod/Pre-Prod/Test
A21: Licencie digitalizácia | B21: 200000 | C21: 0.2 | D21: =B21*C21 -> 40000 | E21: licencie SW na digitalizáciu, vyťažovanie neštruktúrovaných dátových zdrojov (všetky prostredia)
A22: Licencie prevadzkový monitoring | B22: 100000 | C22: 0.2 | D22: =B22*C22 -> 20000 | E22: licencie za SW monitorovania infraštruktúry a aplikácií (všetky prostredia)
A23: Vyvolané licencie v eGov | B23: 200000 | D23: 200000 | E23: platby za vyvolané náklady v iných systémoch, ktoré bude IS KUZZ využívať (eDesk, LTA, ZEP a pod.)
A24: Vývoj riešenia MDM + Konsolidácia | B24: ='[1]Sumar MDs'!E16*'[1]MD rates'!C16 -> 4937975.35 | C24: 0.05 | D24: =B24*C24 -> 246898.7675 | E24: Kalkulovaných cca 50 registrov neznámej zložitosti a rozsahu.
A25: Vývoj riešenia digitalizácia | B25: =B24*0.1 -> 493797.535 | C25: 0.05 | D25: =B25*C25 -> 24689.87675 | E25: práce na kustomizácií digitalizácie a vyťažovania
A26: Nasadenie, prevádzka | B26: 100000 | D26: 100000 | E26: práce spojené s roll-out systému (UAT, nasadenie, zavedenie spätnoväzobného systému, dozor)
A27: Organizačné zabezpečenie | B27: =3*260*8*[1]Faktory!D7+6*260*8*[1]Faktory!D7+10*260*8*[1]Faktory!D7 -> 372278.4 | D27: =10*260*8*[1]Faktory!D7 -> 195936 | E27: Predpoklad vytvorenia organizácie zodpovednej za správu a prevádzku KÚZZ s 10 FTE (počas prvých 3 rokov sa predpokladá postupný nábeh 3, 6, resp. 10 FTE v jednotlivých rokoch)
A28: Riadenie | B28: =107*7*170*3 -> 381990 | E28: Interné a externé - cca 7 FTE - Projektový manažér, projektový koordinátor, manažér monitorovania, manažér kvality, technický manažér, projektový asistent, finančný manažér
A29: Školenia | B29: 200000 | E29: vývoj a naplnenie e-learningu, 1 beh školení pre 10 používateľov
A30: Publicita | B30: 200000
A32: CELKOM | B32: =SUM(B5:B31) -> 9286930.629 | D32: =SUM(D5:D31) -> 1472013.988
A34: TOTAL roky 1 - 3 | B34: =B32 -> 9286930.629
A35: TOTAL roky 4 - 10 | B35: =7*D32 -> 10304097.92
A36: TOTAL 10 rokov | B36: =B34+B35 -> 19591028.55
B38: 18584235.15
B39: =B36-B38 -> 1006793.395
A41: Ešte by bolo vhodné:
A42: počítať s obnovou HW po 4 rokoch prevádzky

Sheet SW a aplikacie
B2: SW a aplikácie - rozdelenie po moduloch a hlavných aktivitách
C4: MDM Rezortná zbernica | D4: MDM Portál | E4: MDM Dátový server | F4: SPOLU
B5: Analýza a dizajn | C5: =SUM(C6:C7) -> 950560.2549 | D5: =SUM(D6:D7) -> 135794.3221 | E5: 271588.6443 | F5: =SUM(C5:E5) -> 1357943.221
B6: Vývoj riešenia MDM + Konsolidácia | C6: ='[1]TCO - Riešenie (bez HW a DB)'!$B$24*'[1]Štandardné aktivity'!$D$24*'[1]Štandardné aktivity'!$D$7 -> 864145.6862 | D6: ='[1]TCO - Riešenie (bez HW a DB)'!$B$24*'[1]Štandardné aktivity'!$D$25*'[1]Štandardné aktivity'!$D$7 -> 123449.3837 | E6: ='[1]TCO - Riešenie (bez HW a DB)'!$B$24*'[1]Štandardné aktivity'!$D$26*'[1]Štandardné aktivity'!$D$7 -> 246898.7675 | F6: =SUM(C6:E6) -> 1234493.837
B7: Vývoj riešenia digitalizácia | C7: ='[1]TCO - Riešenie (bez HW a DB)'!$B$25*'[1]Štandardné aktivity'!$D$24*'[1]Štandardné aktivity'!$D$7 -> 86414.56862 | D7: ='[1]TCO - Riešenie (bez HW a DB)'!$B$25*'[1]Štandardné aktivity'!$D$25*'[1]Štandardné aktivity'!$D$7 -> 12344.93837 | E7: ='[1]TCO - Riešenie (bez HW a DB)'!$B$25*'[1]Štandardné aktivity'!$D$26*'[1]Štandardné aktivity'!$D$7 -> 24689.87675 | F7: 123449.3837
B8: Implementácia | C8: =SUM(C9:C10) -> 1825075.689 | D8: =SUM(D9:D10) -> 260725.0985 | E8: 521450.197 | F8: 2607250.985
B9: Vývoj riešenia MDM + Konsolidácia | C9: ='[1]TCO - Riešenie (bez HW a DB)'!$B$24*'[1]Štandardné aktivity'!$D$24*SUM('[1]Štandardné aktivity'!$D$11:$D$15) -> 1659159.718 | D9: ='[1]TCO - Riešenie (bez HW a DB)'!$B$24*'[1]Štandardné aktivity'!$D$25*SUM('[1]Štandardné aktivity'!$D$11:$D$15) -> 237022.8168 | E9: ='[1]TCO - Riešenie (bez HW a DB)'!$B$24*'[1]Štandardné aktivity'!$D$26*SUM('[1]Štandardné aktivity'!$D$11:$D$15) -> 474045.6336 | F9: 2370228.168
B10: Vývoj riešenia digitalizácia | C10: ='[1]TCO - Riešenie (bez HW a DB)'!$B$25*'[1]Štandardné aktivity'!$D$24*SUM('[1]Štandardné aktivity'!$D$11:$D$15) -> 165915.9718 | D10: ='[1]TCO - Riešenie (bez HW a DB)'!$B$25*'[1]Štandardné aktivity'!$D$25*SUM('[1]Štandardné aktivity'!$D$11:$D$15) -> 23702.28168 | E10: ='[1]TCO - Riešenie (bez HW a DB)'!$B$25*'[1]Štandardné aktivity'!$D$26*SUM('[1]Štandardné aktivity'!$D$11:$D$15) -> 47404.56336 | F10: 237022.8168
B11: Testovanie | C11: =SUM(C12:C13) -> 1026605.075 | D11: =SUM(D12:D13) -> 146657.8679 | E11: 293315.7358 | F11: 1466578.679
B12: Vývoj riešenia MDM + Konsolidácia | C12: ='[1]TCO - Riešenie (bez HW a DB)'!$B$24*'[1]Štandardné aktivity'!$D$24*SUM('[1]Štandardné aktivity'!$D$16:$D$19) -> 933277.3411 | D12: ='[1]TCO - Riešenie (bez HW a DB)'!$B$24*'[1]Štandardné aktivity'!$D$25*SUM('[1]Štandardné aktivity'!$D$16:$D$19) -> 133325.3344 | E12: ='[1]TCO - Riešenie (bez HW a DB)'!$B$24*'[1]Štandardné aktivity'!$D$26*SUM('[1]Štandardné aktivity'!$D$16:$D$19) -> 266650.6689 | F12: 1333253.344
B13: Vývoj riešenia digitalizácia | C13: ='[1]TCO - Riešenie (bez HW a DB)'!$B$25*'[1]Štandardné aktivity'!$D$24*SUM('[1]Štandardné aktivity'!$D$16:$D$19) -> 93327.73411 | D13: ='[1]TCO - Riešenie (bez HW a DB)'!$B$25*'[1]Štandardné aktivity'!$D$25*SUM('[1]Štandardné aktivity'!$D$16:$D$19) -> 13332.53345 | E13: ='[1]TCO - Riešenie (bez HW a DB)'!$B$25*'[1]Štandardné aktivity'!$D$26*SUM('[1]Štandardné aktivity'!$D$16:$D$19) -> 26665.06689 | F13: 133325.3344
B14: Nasadenie a školenia | C14: =('[1]TCO - Riešenie (bez HW a DB)'!$B$29+'[1]TCO - Riešenie (bez HW a DB)'!$B$26)*'[1]Štandardné aktivity'!$D$24 -> 210000 | D14: =('[1]TCO - Riešenie (bez HW a DB)'!$B$29+'[1]TCO - Riešenie (bez HW a DB)'!$B$26)*'[1]Štandardné aktivity'!$D$25 -> 30000 | E14: =('[1]TCO - Riešenie (bez HW a DB)'!$B$29+'[1]TCO - Riešenie (bez HW a DB)'!$B$26)*'[1]Štandardné aktivity'!$D$26 -> 60000 | F14: 300000
B15: Obstaranie SW | C15: =SUM(C16:C20) -> 1204000 | D15: =SUM(D16:D20) -> 172000 | E15: 344000 | F15: 1720000
B16: Licencie DB engine - MDM+BI Enterprise | C16: ='[1]TCO - Riešenie (bez HW a DB)'!B17*'[1]Štandardné aktivity'!D24 -> 224000 | D16: ='[1]TCO - Riešenie (bez HW a DB)'!B17*'[1]Štandardné aktivity'!D25 -> 32000 | E16: ='[1]TCO - Riešenie (bez HW a DB)'!B17*'[1]Štandardné aktivity'!D26 -> 64000 | F16: 320000
B17: Licencie MDM + Konsolidácia | C17: ='[1]TCO - Riešenie (bez HW a DB)'!B20*'[1]Štandardné aktivity'!$D$24 -> 630000 | D17: ='[1]TCO - Riešenie (bez HW a DB)'!B20*'[1]Štandardné aktivity'!$D$25 -> 90000 | E17: ='[1]TCO - Riešenie (bez HW a DB)'!B20*'[1]Štandardné aktivity'!$D$26 -> 180000 | F17: 900000
B18: Licencie digitalizácia | C18: ='[1]TCO - Riešenie (bez HW a DB)'!B21*'[1]Štandardné aktivity'!$D$24 -> 140000 | D18: ='[1]TCO - Riešenie (bez HW a DB)'!B21*'[1]Štandardné aktivity'!$D$25 -> 20000 | E18: ='[1]TCO - Riešenie (bez HW a DB)'!B21*'[1]Štandardné aktivity'!$D$26 -> 40000 | F18: 200000
B19: Licencie prevadzkový monitoring | C19: ='[1]TCO - Riešenie (bez HW a DB)'!B22*'[1]Štandardné aktivity'!$D$24 -> 70000 | D19: ='[1]TCO - Riešenie (bez HW a DB)'!B22*'[1]Štandardné aktivity'!$D$25 -> 10000 | E19: ='[1]TCO - Riešenie (bez HW a DB)'!B22*'[1]Štandardné aktivity'!$D$26 -> 20000 | F19: 100000
B20: Vyvolané licencie eGov | C20: ='[1]TCO - Riešenie (bez HW a DB)'!B23*'[1]Štandardné aktivity'!$D$24 -> 140000 | D20: ='[1]TCO - Riešenie (bez HW a DB)'!B23*'[1]Štandardné aktivity'!$D$25 -> 20000 | E20: ='[1]TCO - Riešenie (bez HW a DB)'!B23*'[1]Štandardné aktivity'!$D$26 -> 40000 | F20: 200000
B21: Podporné aktivity | C21: =SUM(C22:C23) -> 407393 | D21: =SUM(D22:D23) -> 58199 | E21: 116398 | F21: 581990
B22: Publicita | C22: ='[1]TCO - Riešenie (bez HW a DB)'!B30*'[1]Štandardné aktivity'!$D$24 -> 140000 | D22: ='[1]TCO - Riešenie (bez HW a DB)'!B30*'[1]Štandardné aktivity'!$D$25 -> 20000 | E22: ='[1]TCO - Riešenie (bez HW a DB)'!B30*'[1]Štandardné aktivity'!D26 -> 40000 | F22: 200000
B23: Projektové riadenie | C23: ='[1]TCO - Riešenie (bez HW a DB)'!B28*'[1]Štandardné aktivity'!$D$24 -> 267393 | D23: ='[1]TCO - Riešenie (bez HW a DB)'!B28*'[1]Štandardné aktivity'!$D$25 -> 38199 | E23: ='[1]TCO - Riešenie (bez HW a DB)'!B28*'[1]Štandardné aktivity'!$D$26 -> 76398 | F23: 381990
B24: SPOLU | C24: =C5+C8+C11+C14+C15+C21 -> 5623634.02 | D24: =D5+D8+D11+D14+D15+D21 -> 803376.2885 | E24: 1606752.577 | F24: 8033762.885
B26: Prevádzka - cloud (1-3 rok) | C26: =SUM('[1]TCO - Riešenie (bez HW a DB)'!$B$6:$B$14)*'[1]Štandardné aktivity'!$D$24 -> 616622.5408 | D26: =SUM('[1]TCO - Riešenie (bez HW a DB)'!$B$6:$B$14)*'[1]Štandardné aktivity'!$D$25 -> 88088.9344 | E26: =SUM('[1]TCO - Riešenie (bez HW a DB)'!$B$6:$B$14)*'[1]Štandardné aktivity'!$D$26 -> 176177.8688 | F26: 880889.344
B27: Prevádzka - organizačné zabezpečenie (1-3 rok) | C27: ='[1]TCO - Riešenie (bez HW a DB)'!$B$27*'[1]Štandardné aktivity'!$D$24 -> 260594.88 | D27: ='[1]TCO - Riešenie (bez HW a DB)'!$B$27*'[1]Štandardné aktivity'!$D$25 -> 37227.84 | E27: ='[1]TCO - Riešenie (bez HW a DB)'!$B$27*'[1]Štandardné aktivity'!$D$26 -> 74455.68 | F27: =SUM(C27:E27) -> 372278.4
B29: SPOLU Náklady projektu | C29: =C24+C26+C27 -> 6500851.44 | D29: =D24+D26+D27 -> 928693.0629 | E29: 1857386.126 | F29: 9286930.629
B31: Mimo nákladov projektu
B32: Prevádzka - licencie (4-10 rok) | C32: =(('[1]TCO - Riešenie (bez HW a DB)'!$D$17+'[1]TCO - Riešenie (bez HW a DB)'!$D$20+'[1]TCO - Riešenie (bez HW a DB)'!$D$21+'[1]TCO - Riešenie (bez HW a DB)'!$D$22+'[1]TCO - Riešenie (bez HW a DB)'!$D$23)*'[1]Štandardné aktivity'!$D$24)*7 -> 2469600 | D32: =(('[1]TCO - Riešenie (bez HW a DB)'!$D$17+'[1]TCO - Riešenie (bez HW a DB)'!$D$20+'[1]TCO - Riešenie (bez HW a DB)'!$D$21+'[1]TCO - Riešenie (bez HW a DB)'!$D$22+'[1]TCO - Riešenie (bez HW a DB)'!$D$23)*'[1]Štandardné aktivity'!$D$25)*7 -> 352800 | E32: =(('[1]TCO - Riešenie (bez HW a DB)'!$D$17+'[1]TCO - Riešenie (bez HW a DB)'!$D$20+'[1]TCO - Riešenie (bez HW a DB)'!$D$21+'[1]TCO - Riešenie (bez HW a DB)'!$D$22+'[1]TCO - Riešenie (bez HW a DB)'!$D$23)*'[1]Štandardné aktivity'!$D$26)*7 -> 705600 | F32: 3528000
B33: Prevádzka - organizažné zabezpečenie (4-10 rok) | C33: ='[1]TCO - Riešenie (bez HW a DB)'!$D$27*'[1]Štandardné aktivity'!$D$24*7 -> 960086.4 | D33: ='[1]TCO - Riešenie (bez HW a DB)'!$D$27*'[1]Štandardné aktivity'!$D$25*7 -> 137155.2 | E33: ='[1]TCO - Riešenie (bez HW a DB)'!$D$27*'[1]Štandardné aktivity'!$D$26*7 -> 274310.4 | F33: 1371552
B34: Prevádzka - cloud (4-10 rok) | C34: =(SUM('[1]TCO - Riešenie (bez HW a DB)'!$D$6:$D$14)*'[1]Štandardné aktivity'!$D$24)*7 -> 1962397.786 | D34: =(SUM('[1]TCO - Riešenie (bez HW a DB)'!$D$6:$D$14)*'[1]Štandardné aktivity'!$D$25)*7 -> 280342.5408 | E34: =(SUM('[1]TCO - Riešenie (bez HW a DB)'!$D$6:$D$14)*'[1]Štandardné aktivity'!$D$26)*7 -> 560685.0816 | F34: 2803425.408
B35: Prevádzka - ostatné (4-10 rok) | C35: =(('[1]TCO - Riešenie (bez HW a DB)'!$D$24+'[1]TCO - Riešenie (bez HW a DB)'!$D$25+'[1]TCO - Riešenie (bez HW a DB)'!$D$26+'[1]TCO - Riešenie (bez HW a DB)'!$D$28)*'[1]Štandardné aktivity'!$D$24)*7 -> 1820784.357 | D35: =(('[1]TCO - Riešenie (bez HW a DB)'!$D$24+'[1]TCO - Riešenie (bez HW a DB)'!$D$25+'[1]TCO - Riešenie (bez HW a DB)'!$D$26+'[1]TCO - Riešenie (bez HW a DB)'!$D$28)*'[1]Štandardné aktivity'!$D$25)*7 -> 260112.051 | E35: =(('[1]TCO - Riešenie (bez HW a DB)'!$D$24+'[1]TCO - Riešenie (bez HW a DB)'!$D$25+'[1]TCO - Riešenie (bez HW a DB)'!$D$26+'[1]TCO - Riešenie (bez HW a DB)'!$D$28)*'[1]Štandardné aktivity'!$D$26)*7 -> 520224.1019 | F35: 2601120.51
B36: SPOLU Prevádzka (4-10 rok) | C36: =SUM(C32:C35) -> 7212868.542 | D36: =SUM(D32:D35) -> 1030409.792 | E36: 2060819.584 | F36: =SUM(C36:E36) -> 10304097.92

Sheet eGovCloud - Parametre
B2: e-GovCloud Parametre
B4: Popis | C4: Počet | D4: Poznámka | E4: Link
B5: Spolu VM | C5: ='[1]TCO - Riešenie (bez HW a DB)'!F6+'[1]TCO - Riešenie (bez HW a DB)'!F7+'[1]TCO - Riešenie (bez HW a DB)'!F9 -> 28
B6: GiB per VM | C6: 40 | D6: diskový priestor pre OS
B8: DB licencia per Core | C8: 10000 | D8: napr. Pre MSSQL Enterprise DataCenter + BI je to 7000
B10: koeficient prvých troch rokov PROD | C10: 1 | D10: z troch rokov dodavky toto prostredie bude zit tolkoto rokov
B11: koeficient prvých troch rokov NonPROD | C11: 2 | D11: z troch rokov dodavky toto prostredie bude zit tolkoto rokov
B12: eGovCloud VM PROD | C12: =244.83*12 -> 2937.96 | D12: 4 vCPU, 16 GiB RAM | E12: https://metais.finance.gov.sk/detail/InfraSluzbaCennikovyZaznam/585e25fe-b582-4073-a9a0-02fd76cb8b34/cimaster?tab=summarizingCart
B13: eGovCloud VM DBD | C13: =579.38*12 -> 6952.56 | D13: 8 vCPU, 64 Gib RAM | E13: https://metais.finance.gov.sk/detail/InfraSluzbaCennikovyZaznam/4b78480f-ecf9-4dcc-a9f1-d1883126173f/cimaster?tab=summarizingCart
B14: eGovCloud VM PROD | C14: =130.46*12 -> 1565.52 | D14: 2 vCPU, 8 GiB | E14: https://metais.finance.gov.sk/detail/InfraSluzbaCennikovyZaznam/d0433b37-1bb4-4f32-9423-437f00acb89e/cimaster?tab=summarizingCart
B15: koeficient eGov cloud nonPROD | C15: 0.6 | D15: koeficient pre výpočet ceny za nonPROD prostredia (v MetaIS cena zrejme nie je)
B16: eGov Storage SAN per 1GiB | C16: =100*12 -> 1200 | D16: Ceny sme nenasli v MetaIS, uvadzame nase odhady. Plati sa za neho a ide to do projektu?
B17: eGov Storage per 1TiB (stredná) | C17: =400*12 -> 4800 | D17: Ceny sme nenasli v MetaIS, uvadzame nase odhady. Plati sa za neho a ide to do projektu?
B18: eGov Storage per 1TiB (vysoká) | C18: =1000*12 -> 12000 | D18: Ceny sme nenasli v MetaIS, uvadzame nase odhady. Plati sa za neho a ide to do projektu?
B19: koeficient deduplikacie VM | C19: 0.1 | D19: koeficient pre výpočet kapacitu diskového priestoru na zálohovenie VM

Sheet Sumar MDs
B2: Sumár MDs
B4: Kategória registra | C4: Trieda | D4: Počet | E4: MDs na register | F4: MDs Celkovo | H4: Faktory pre výpočet | J4: Poznámka
B5: ='[1]Klasifikacia pre Impl'!A2 -> číselník | C5: Vzorové | D5: =IF('[1]Klasifikacia pre Impl'!B2>=I$5,I$5,'[1]Klasifikacia pre Impl'!B2) -> 10 | E5: =VLOOKUP(B5,'[1]Klasifikacia pre Impl'!$A$2:$C$6,3) -> 20 | F5: =D5*E5 -> 200 | H5: Počet vzorových implementácií pre kategóriu registra | I5: 10 | J5: Výchádza z počtu organizácií (list "Registre", stĺpec "Správca")
B6: ='[1]Klasifikacia pre Impl'!A2 -> číselník | C6: Ďalšie | D6: ='[1]Klasifikacia pre Impl'!B2-D5 -> 112 | E6: =VLOOKUP(B6,'[1]Klasifikacia pre Impl'!$A$2:$C$6,3)*(1-$I$6) -> 10 | F6: =D6*E6 -> 1120 | H6: Úspora pri znovupoužití postupov pre číselníky | I6: 0.5
H7: Úspora pri znovupoužití postupov pre registre - manuálny | I7: 0.1
B8: ='[1]Klasifikacia pre Impl'!A3 -> manuálny | C8: Vzorové | D8: =IF('[1]Klasifikacia pre Impl'!B3>=I$5,I$5,'[1]Klasifikacia pre Impl'!B3) -> 10 | E8: =VLOOKUP(B8,'[1]Klasifikacia pre Impl'!$A$2:$C$6,3) -> 200 | F8: =D8*E8 -> 2000 | H8: Úspora pri znovupoužití postupov pre registre - plne automatizovaný | I8: 0.3
B9: ='[1]Klasifikacia pre Impl'!A3 -> manuálny | C9: Ďalšie | D9: ='[1]Klasifikacia pre Impl'!B3-D8 -> 22 | E9: =VLOOKUP(B9,'[1]Klasifikacia pre Impl'!$A$2:$C$6,3)*(1-$I$7) -> 180 | F9: =D9*E9 -> 3960 | H9: Úspora pri znovupoužití postupov pre registre - poloautomatický | I9: 0.3
H10: Úspora pri znovupoužití postupov pre registre - webový | I10: 0.3
B11: ='[1]Klasifikacia pre Impl'!A4 -> plne automatizovaný | C11: Vzorové | D11: =IF('[1]Klasifikacia pre Impl'!B4>=I$5,I$5,'[1]Klasifikacia pre Impl'!B4) -> 0 | E11: =VLOOKUP(B11,'[1]Klasifikacia pre Impl'!$A$2:$C$6,3) -> 130 | F11: =D11*E11 -> 0
B12: ='[1]Klasifikacia pre Impl'!A4 -> plne automatizovaný | C12: Ďalšie | D12: ='[1]Klasifikacia pre Impl'!B4-D11 -> 0 | E12: =VLOOKUP(B12,'[1]Klasifikacia pre Impl'!$A$2:$C$6,3)*(1-$I$8) -> 91 | F12: =D12*E12 -> 0
B14: ='[1]Klasifikacia pre Impl'!A5 -> poloautomatický | C14: Vzorové | D14: =IF('[1]Klasifikacia pre Impl'!B5>=I$5,I$5,'[1]Klasifikacia pre Impl'!B5) -> 10 | E14: =VLOOKUP(B14,'[1]Klasifikacia pre Impl'!$A$2:$C$6,3) -> 150 | F14: =D14*E14 -> 1500
B15: ='[1]Klasifikacia pre Impl'!A5 -> poloautomatický | C15: Ďalšie | D15: ='[1]Klasifikacia pre Impl'!B5-D14 -> 17 | E15: =VLOOKUP(B15,'[1]Klasifikacia pre Impl'!$A$2:$C$6,3)*(1-$I$9) -> 105 | F15: =D15*E15 -> 1785
B17: ='[1]Klasifikacia pre Impl'!A6 -> webový | C17: Vzorové | D17: =IF('[1]Klasifikacia pre Impl'!B6>=I$5,I$5,'[1]Klasifikacia pre Impl'!B6) -> 0 | E17: =VLOOKUP(B17,'[1]Klasifikacia pre Impl'!$A$2:$C$6,3) -> 200 | F17: =D17*E17 -> 0
B18: ='[1]Klasifikacia pre Impl'!A6 -> webový | C18: Ďalšie | D18: ='[1]Klasifikacia pre Impl'!B6-D17 -> 0 | E18: =VLOOKUP(B18,'[1]Klasifikacia pre Impl'!$A$2:$C$6,3)*(1-$I$10) -> 140 | F18: =D18*E18 -> 0
B19: Celkom | F19: =SUM(F5:F18) -> 10565
B22: Náklady na integráciu na strane zdrojového systému
B24: Významnosť IS | C24: Register/Zoznam | D24: Náklad
B25: 1 | C25: Zoznam | D25: 5000
B26: 2 | C26: Zoznam | D26: 10000
B27: 3 | C27: Zoznam | D27: 20000
B28: 1 | C28: Register | D28: 50000
B29: 2 | C29: Register | D29: 100000
B30: 3 | C30: Register | D30: 200000

Sheet Registre
B1: Zoznam registrov
B2: 36 RUVZ a 22 komor
B3: Názov | C3: Správca | D3: Legislatíva/Predpis | E3: Typ | F3: Klasifikácia | G3: IS | H3: Zdroje dát | I3: Vstupné rozhrania | J3: Výstupné rozhrania | K3: Automatizácia | L3: Sizing v MB | M3: Poznámka | N3: Počet atribútov | O3: Významnosť IS | P3: Náklady na integráciu | Q3: Fáza projektu (rok)
B4: Národný register poskytovateľov zdravotnej starostlivosti | C4: NCZI | D4: Zákon 153/2013, Vyhl. 9/2014 | E4: Register | F4: Referenčný | G4: JRÚZ/ISZI | H4: iné registre | I4: csv/txt, xml | K4: poloautomatický | N4: 63 | O4: 3 | P4: ='[1]Sumar MDs'!$C$27 -> 200000 | Q4: t2
B5: Národný register zdravotníckych pracovníkov | C5: NCZI | D5: Zákon 153/2013, Vyhl. 9/2014 | E5: Register | F5: Referenčný | G5: JRÚZ/ISZI | H5: iné registre | I5: csv/txt, xml, xls | K5: poloautomatický | N5: 122 | O5: 3 | P5: ='[1]Sumar MDs'!$C$27 -> 200000 | Q5: t2
B6: Národný register prijímateľov zdravotnej staroslivosti | C6: NCZI | D6: nie je | E6: Register | F6: Referenčný | G6: JRÚZ/ISZI | H6: iné registre | I6: xml | K6: poloautomatický | N6: 469 | O6: 3 | P6: ='[1]Sumar MDs'!$C$27 -> 200000 | Q6: t2
B7: Národný farmaceutický register | C7: NCZI | D7: nie je | E7: Register | F7: Referenčný | G7: JRÚZ/ISZI | H7: iné registre | I7: xml, xls | K7: poloautomatický | O7: 3 | P7: ='[1]Sumar MDs'!$C$27 -> 200000 | Q7: t2
B8: Národný register elektronických zdravotných knižiek, | C8: NCZI | D8: Zákon 153/2013, Vyhl. 74/2014, Vyhl. 141/2016 | E8: Register | F8: Štatistický | G8: JRÚZ/ISZI | H8: hlásenia | I8: papier, xls, web GUI, xml | K8: poloautomatický | N8: 65 | O8: 3 | P8: ='[1]Sumar MDs'!$C$27 -> 200000 | Q8: t2
B9: Národný onkologický register, | C9: NCZI | D9: Zákon 153/2013, Vyhl. 74/2014, Vyhl. 141/2016 | E9: Register | F9: Štatistický | G9: JRÚZ/ISZI | H9: hlásenia | I9: papier, xls, web GUI, xml | K9: poloautomatický | N9: 30 | O9: 3 | P9: ='[1]Sumar MDs'!$C$27 -> 200000 | Q9: t3
B10: Národný register pacientov s diabetes mellitus, | C10: NCZI | D10: Zákon 153/2013, Vyhl. 74/2014, Vyhl. 141/2016 | E10: Register | F10: Štatistický | G10: JRÚZ/ISZI | H10: hlásenia | I10: papier, xls, web GUI, xml | K10: poloautomatický | N10: 25 | O10: 3 | P10: ='[1]Sumar MDs'!$C$27 -> 200000 | Q10: t3
B11: Národný register pacientov s vrodenou vývojovou chybou, | C11: NCZI | D11: Zákon 153/2013, Vyhl. 74/2014, Vyhl. 141/2016 | E11: Register | F11: Štatistický | G11: JRÚZ/ISZI | H11: hlásenia | I11: papier, xls, web GUI, xml | K11: poloautomatický | N11: 30 | O11: 3 | P11: ='[1]Sumar MDs'!$C$27 -> 200000 | Q11: t3
B12: Národný register pacientov so srdcovocievnym ochorením, | C12: NCZI | D12: Zákon 153/2013, Vyhl. 74/2014, Vyhl. 141/2016 | E12: Register | F12: Štatistický | G12: JRÚZ/ISZI | H12: hlásenia | I12: papier, xls, web GUI, xml | K12: poloautomatický | N12: 15 | O12: 3 | P12: ='[1]Sumar MDs'!$C$27 -> 200000 | Q12: t3
B13: Národný register pacientov s neurologickým ochorením, | C13: NCZI | D13: Zákon 153/2013, Vyhl. 74/2014, Vyhl. 141/2016 | E13: Register | F13: Štatistický | G13: JRÚZ/ISZI | H13: hlásenia | I13: papier, xls, web GUI, xml | K13: poloautomatický | N13: 20 | O13: 3 | P13: ='[1]Sumar MDs'!$C$27 -> 200000 | Q13: t3
B14: Národný register pacientov s chronickým ochorením pľúc, | C14: NCZI | D14: Zákon 153/2013, Vyhl. 74/2014, Vyhl. 141/2016 | E14: Register | F14: Štatistický | G14: JRÚZ/ISZI | H14: hlásenia | I14: papier, xls, web GUI, xml | K14: poloautomatický | N14: 20 | O14: 3 | P14: ='[1]Sumar MDs'!$C$27 -> 200000 | Q14: t3
B15: Národný register pacientov s tuberkulózou, | C15: NCZI | D15: Zákon 153/2013, Vyhl. 74/2014, Vyhl. 141/2016 | E15: Register | F15: Štatistický | G15: JRÚZ/ISZI | H15: hlásenia | I15: papier, xls, web GUI, xml | K15: poloautomatický | N15: 25 | O15: 3 | P15: ='[1]Sumar MDs'!$C$27 -> 200000 | Q15: t4
B16: Národný artroplastický register, | C16: NCZI | D16: Zákon 153/2013, Vyhl. 74/2014, Vyhl. 141/2016 | E16: Register | F16: Štatistický | G16: JRÚZ/ISZI | H16: hlásenia | I16: papier, xls, web GUI, xml | K16: poloautomatický | N16: 30 | O16: 3 | P16: ='[1]Sumar MDs'!$C$27 -> 200000 | Q16: t4
B17: Národný register pacientov so zápalovým reumatickým ochorením, | C17: NCZI | D17: Zákon 153/2013, Vyhl. 74/2014, Vyhl. 141/2016 | E17: Register | F17: Štatistický | G17: JRÚZ/ISZI | H17: hlásenia | I17: papier, xls, web GUI, xml | K17: poloautomatický | N17: 20 | O17: 3 | P17: ='[1]Sumar MDs'!$C$27 -> 200000 | Q17: t4
B18: Národný register osôb s úrazom vyžadujúcim poskytnutie ústavnej zdravotnej starostlivosti, | C18: NCZI | D18: Zákon 153/2013, Vyhl. 74/2014, Vyhl. 141/2016 | E18: Register | F18: Štatistický | G18: JRÚZ/ISZI | H18: hlásenia | I18: papier, xls, web GUI, xml | K18: poloautomatický | N18: 30 | O18: 3 | P18: ='[1]Sumar MDs'!$C$27 -> 200000 | Q18: t4
B19: Národný register osôb s podozrením na ich zanedbávanie, týranie, zneužívanie a osôb, na ktorých bolo páchané násilie, | C19: NCZI | D19: Zákon 153/2013, Vyhl. 74/2014, Vyhl. 141/2016 | E19: Register | F19: Štatistický | G19: JRÚZ/ISZI | H19: hlásenia | I19: papier, xls, web GUI, xml | K19: poloautomatický | N19: 40 | O19: 3 | P19: ='[1]Sumar MDs'!$C$27 -> 200000 | Q19: t4
B20: Národný register asistovanej reprodukcie. | C20: NCZI | D20: Zákon 153/2013, Vyhl. 74/2014, Vyhl. 141/2016 | E20: Register | F20: Štatistický | G20: JRÚZ/ISZI | H20: hlásenia | I20: papier, xls, web GUI, xml | K20: poloautomatický | N20: 20 | O20: 3 | P20: ='[1]Sumar MDs'!$C$27 -> 200000 | Q20: t4
B21: Národný register organizácií nakladujúcich s liekmi | C21: NCZI | D21: Zákon 362/2011 | E21: Register | F21: Referenčný | G21: Excel | H21: nie sú definované | I21: xls | K21: manuálny | N21: N/A | O21: 1 | P21: ='[1]Sumar MDs'!$C$25 -> 50000 | Q21: t5
B22: Centrálny register poistencov | C22: ÚDZS | D22: Zákon 581/2004, Vyhl. 107/2015 | E22: Register | F22: Referenčný | G22: IS ÚDZS | J22: xml,dbx | K22: poloautomatický | N22: 17 | O22: 3 | P22: ='[1]Sumar MDs'!$C$27 -> 200000 | Q22: t2
B23: Register poskytovateľov zdravotnej starostlivosti | C23: ÚDZS | D23: Zákon 581/2004, Vyhl. 107/2015 | E23: Register | F23: Referenčný | G23: IS ÚDZS | H23: dátové vety | I23: xml | J23: xml,xls | K23: poloautomatický | N23: 20 | O23: 3 | P23: ='[1]Sumar MDs'!$C$27 -> 200000 | Q23: t2
B24: Register zdravotníckych pracovníkov | C24: ÚDZS | D24: Zákon 581/2004, Vyhl. 107/2015 | E24: Register | F24: Referenčný | G24: IS ÚDZS | H24: dátové vety | I24: xml | J24: xml,xls | K24: poloautomatický | N24: 11 | O24: 3 | P24: ='[1]Sumar MDs'!$C$27 -> 200000 | Q24: t2
B25: Register úmrtí | C25: ÚDZS | D25: Zákon 581/2004, Vyhl. 107/2015 | E25: Register | F25: Referenčný | G25: IS ÚDZS | H25: oznámenie | I25: papier | J25: xml | K25: poloautomatický | N25: 14 | O25: 3 | P25: ='[1]Sumar MDs'!$C$27 -> 200000 | Q25: t2
B26: Register zdravotných poisťovní | C26: ÚDZS | D26: Zákon 581/2004, Vyhl. 107/2015 | E26: Register | F26: Referenčný | G26: IS ÚDZS | J26: xml | K26: poloautomatický | N26: 20 | O26: 3 | P26: ='[1]Sumar MDs'!$C$27 -> 200000 | Q26: t2
B27: Register platiteľov poistného | C27: ÚDZS | D27: Zákon 581/2004, Vyhl. 107/2015 | E27: Register | F27: Referenčný | G27: IS ÚDZS | H27: dátové vety | I27: xml | K27: poloautomatický | N27: 10 | O27: 3 | P27: ='[1]Sumar MDs'!$C$27 -> 200000 | Q27: t2
B28: Register osôb oprávnených na výkon dohľadu | C28: ÚDZS | D28: Zákon 581/2004, Vyhl. 107/2015 | E28: Register | F28: Referenčný | G28: IS ÚDZS | K28: poloautomatický | N28: 6 | O28: 3 | P28: ='[1]Sumar MDs'!$C$27 -> 200000 | Q28: t3
B29: Register podaných prihlášok na verejné zdravotné poistenie | C29: ÚDZS | D29: Zákon 581/2004, Vyhl. 107/2015 | E29: Register | F29: Referenčný | G29: IS ÚDZS | H29: oznámenie | I29: webové rozhranie | K29: poloautomatický | N29: 20 | O29: 3 | P29: ='[1]Sumar MDs'!$C$27 -> 200000 | Q29: t2
B30: Register osôb, ktoré odmietli za života pitvu | C30: ÚDZS | D30: Zákon 581/2004, Vyhl. 107/2015 | E30: Register | F30: Referenčný | G30: IS ÚDZS | H30: oznámenie | I30: papier | K30: poloautomatický | N30: 13 | O30: 1 | P30: ='[1]Sumar MDs'!$C$25 -> 50000 | Q30: t5
B31: Register zariadení sociálnych služieb a zariadení sociálnoprávnej ochrany detí a sociálnej kurately | C31: ÚDZS | D31: Zákon 581/2004, Vyhl. 107/2015 | E31: Register | F31: Referenčný | G31: IS ÚDZS | H31: žiadosť | I31: papier | K31: poloautomatický | N31: 9 | O31: 1 | P31: ='[1]Sumar MDs'!$C$25 -> 50000 | Q31: t5
B32: Register odborne spôsobilých osôb | C32: ÚVZ SR | D32: Zákon 355/2007 | E32: Register | F32: Agendový | G32: IS ÚVZ | H32: formulár | I32: papier, email, xls | J32: email | K32: manuálny | L32: 4830 | M32: ročný objem dát | N32: 5 | O32: 1 | P32: ='[1]Sumar MDs'!$C$25 -> 50000 | Q32: t2
B33: IS o kúpaliskách a kvalite vody na kúpanie | C33: ÚVZ SR, SAŽP | D33: Zákon 355/2007 | E33: Zoznam | F33: Štatistický | G33: IS vody | H33: formulár | I33: papier | J33: email | K33: manuálny | L33: 47040 | M33: ročný objem dát | N33: 35 | O33: 1 | P33: ='[1]Sumar MDs'!$C$22 -> 5000 | Q33: t5
B34: Zoznam právnických a fyzických osôb – podnikateľov, ktoré majú oprávnenie na vykonávanie činnosti pracovnej zdravotnej služby | C34: ÚVZ SR | D34: Zákon 355/2007 | E34: Zoznam | F34: Agendový | G34: Excel | H34: formulár | I34: papier | J34: xls | K34: manuálny | L34: 660 | M34: ročný objem dát | N34: 6 | O34: 1 | P34: ='[1]Sumar MDs'!$C$22 -> 5000 | Q34: t5
B35: Zoznam fyzických osôb – podnikateľov a právnických osôb, ktoré vykonávajú samostatne dodávateľským spôsobom činnosť pracovnej zdravotnej služby | C35: ÚVZ SR | D35: Zákon 355/2007 | E35: Zoznam | F35: Agendový | G35: Excel | H35: formulár | I35: papier | J35: xls | K35: manuálny | L35: 0 | M35: ročný objem dát | N35: 6 | O35: 1 | P35: ='[1]Sumar MDs'!$C$22 -> 5000 | Q35: t5
B36: Zoznam právnických osôb a fyzických osôb – podnikateľov oprávnených odstraňovať azbestové materiály zo stavieb | C36: ÚVZ SR | D36: Zákon 355/2007 | E36: Zoznam | F36: Agendový | G36: Excel | H36: formulár | I36: papier | J36: xls | K36: manuálny | L36: 77.5 | M36: ročný objem dát | N36: 8 | O36: 1 | P36: ='[1]Sumar MDs'!$C$22 -> 5000 | Q36: t5
B37: Databáza spracovaných informácii z vyšetrení - rezistencie mikroorganizmov na antibiotiká | C37: ÚVZ SR | E37: Zoznam | F37: Agendový | G37: SNARS | H37: formulár | I37: papier | J37: email | K37: manuálny | L37: 813580 | M37: ročný objem dát | N37: 25 | O37: 1 | P37: ='[1]Sumar MDs'!$C$22 -> 5000 | Q37: t5
B38: Centrálny register rizikových prác | C38: ÚVZ SR | D38: Zákon 355/2007 | E38: Register | F38: Agendový | G38: ASTR | H38: formulár | I38: email, dbx | J38: email | K38: manuálny | L38: 110 | M38: ročný objem dát | N38: 55 | O38: 1 | P38: ='[1]Sumar MDs'!$C$25 -> 50000 | Q38: t5
B39: Register výrobcov a dovozcov nových potravín a zložiek nových potravín | C39: ÚVZ SR | D39: Zákon 355/2007 | E39: Zoznam | F39: Agendový | G39: Excel | H39: formulár | I39: papier | J39: xls | K39: manuálny | L39: 4522.5 | M39: ročný objem dát | N39: 5 | O39: 1 | P39: ='[1]Sumar MDs'!$C$22 -> 5000 | Q39: t5
B40: Register výrobcov a dovozcov výživových doplnkov a potravín na osobitné výživové účely | C40: ÚVZ SR | D40: Zákon 355/2007 | E40: Zoznam | F40: Agendový | G40: Excel | H40: formulár | I40: email, web | J40: xls | K40: manuálny | L40: 1500 | M40: ročný objem dát | N40: 6 | O40: 1 | P40: ='[1]Sumar MDs'!$C$22 -> 5000 | Q40: t5
B41: Register minerálnych vôd a pramenitých vôd | C41: MZ SR | D41: Zákon 355/2007 | O41: 1 | Q41: t6
B42: Register činností vedúcich k ožiareniu | C42: ÚVZ SR | D42: Zákon 355/2007 | E42: Zoznam | F42: Agendový | G42: Excel | H42: formulár | I42: papier | J42: xls | K42: manuálny | L42: 110 | M42: ročný objem dát | N42: 8 | O42: 1 | P42: ='[1]Sumar MDs'!$C$22 -> 5000 | Q42: t6
B43: Centrálny register dávok pracovníkov so zdrojmi ionizujúceho žiarenia | C43: ÚVZ SR | D43: Zákon 355/2007 | E43: Register | F43: Agendový | G43: IS ÚVZ | H43: formulár | I43: papier, email | J43: email | K43: manuálny | M43: ročný objem dát | N43: 15 | O43: 1 | P43: ='[1]Sumar MDs'!$C$25 -> 50000 | Q43: t6
B44: Centrálny register zdrojov ionizujúceho žiarenia | C44: ÚVZ SR | D44: Zákon 355/2007 | E44: Zoznam | F44: Agendový | G44: Excel | H44: formulár | I44: papier | J44: xls | K44: manuálny | L44: 39000 | M44: ročný objem dát | N44: 50 | O44: 1 | P44: ='[1]Sumar MDs'!$C$22 -> 5000 | Q44: t6
B45: Register pacientov s prenosnými ochoreniami | C45: ÚVZ SR | D45: Zákon 355/2007 | E45: Register | F45: Agendový | G45: EPIS | H45: formulár | I45: papier, email, telefón | J45: email, interakcia na server | K45: manuálny | L45: 19708 | M45: ročný objem dát | N45: 40 | O45: 2 | P45: ='[1]Sumar MDs'!$C$26 -> 100000 | Q45: t6
B46: Centrálna databáza vyplnených dotazníkov Testu Zdravé srdce | C46: ÚVZ SR | D46: nie je | E46: Zoznam | F46: Agendový | G46: IS Zdravé srdce | H46: formulár | I46: papier, email | K46: manuálny | L46: 10 | M46: ročný objem dát | N46: 30 | O46: 1 | P46: ='[1]Sumar MDs'!$C$22 -> 5000 | Q46: t6
B47: Register licencií (zdravotníckych pracovníkov) | C47: Komory | D47: Zákon 578/2004, Vyhl. 107/2015 | E47: Register | F47: Agendový | G47: IS komôr | H47: formulár | I47: papier | J47: xml, xls | K47: manuálny | L47: 100 | M47: ročný objem dát | N47: 30 | O47: 1 | P47: ='[1]Sumar MDs'!$C$25 -> 50000 | Q47: t3
B48: Register komory | C48: Komory | D48: Zákon 578/2004, Vyhl. 107/2015 | E48: Register | F48: Agendový | G48: IS komôr | H48: formulár | I48: papier | J48: xml, xls | K48: manuálny | L48: 1150 | M48: ročný objem dát | N48: 30 | O48: 1 | P48: ='[1]Sumar MDs'!$C$25 -> 50000 | Q48: t3
B49: Register povolení (poskytovateľov zdravotnej starostlivosti) | C49: VÚC, MZ SR, ŠKK | D49: Zákon 578/2004, Zákon 538/2005, Vyhl. 107/2015 | E49: Register | F49: Agendový | G49: IS VÚC, IS komory | H49: formulár | I49: papier | J49: xml | K49: manuálny | N49: 40 | O49: 1 | P49: ='[1]Sumar MDs'!$C$25 -> 50000 | Q49: t3
B50: Zoznam kategorizovaných liekov | C50: MZ SR | D50: Zákon 363/2011 | E50: Zoznam | F50: Referenčný | G50: IS DALI | H50: formulár | I50: papier, web GUI | J50: web-xls | K50: manuálny | N50: 20 | O50: 3 | P50: ='[1]Sumar MDs'!$C$24 -> 20000 | Q50: t3
B51: Zoznam kategorizovaných zdravotníckych pomôcok | C51: MZ SR | D51: Zákon 363/2011 | E51: Zoznam | F51: Referenčný | G51: IS DALI | H51: formulár | I51: papier, web GUI | J51: web-xls | K51: manuálny | N51: 17 | O51: 3 | P51: ='[1]Sumar MDs'!$C$24 -> 20000 | Q51: t3
B52: Zoznam kategorizovaných špeciálnych zdravotníckych materiálov | C52: MZ SR | D52: Zákon 363/2011 | E52: Zoznam | F52: Referenčný | G52: IS DALI | H52: formulár | I52: papier, web GUI | J52: web-xls | K52: manuálny | N52: 18 | O52: 3 | P52: ='[1]Sumar MDs'!$C$24 -> 20000 | Q52: t3
B53: Zoznam kategorizovaných dietetických potravín | C53: MZ SR | D53: Zákon 363/2011 | E53: Zoznam | F53: Referenčný | G53: IS DALI | H53: formulár | I53: papier, web GUI | J53: web-xls | K53: manuálny | N53: 22 | O53: 3 | P53: ='[1]Sumar MDs'!$C$24 -> 20000 | Q53: t3
B54: Zoznamy úradne určených cien | C54: MZ SR | D54: Zákon 363/2011 | E54: Zoznam | F54: Referenčný | G54: IS DALI | H54: formulár | I54: papier, web GUI | J54: web-xls | K54: manuálny | N54: 10 | O54: 3 | P54: ='[1]Sumar MDs'!$C$24 -> 20000 | Q54: t3
B55: Zoznam zdravotníckych pomôcok na mieru | C55: MZ SR | D55: Zákon 363/2011 | E55: Zoznam | F55: Referenčný | G55: IS DALI | H55: formulár | I55: papier, web GUI | J55: web-xls | K55: manuálny | N55: 21 | O55: 3 | P55: ='[1]Sumar MDs'!$C$24 -> 20000 | Q55: t3
B56: Registrácia humánnych liekov | C56: ŠÚKL | D56: Zákon 362/2011 | E56: Register | F56: Agendový | G56: IS o liekoch | H56: formulár | I56: papier | K56: manuálny | L56: 138015 | N56: 14 | O56: 3 | P56: ='[1]Sumar MDs'!$C$27 -> 200000 | Q56: t3
B57: Databáza zdravotníckych pomôcok | C57: ŠÚKL | D57: Zákon 362/2011 | E57: Register | F57: Agendový | G57: IS o liekoch | H57: formulár | I57: papier | K57: manuálny | L57: 198157 | N57: 39 | O57: 2 | P57: ='[1]Sumar MDs'!$C$26 -> 100000 | Q57: t3
B58: Register inšpekcie | C58: ŠÚKL | D58: Zákon 362/2011 | E58: Register | F58: Agendový | G58: IS o liekoch | H58: formulár | I58: papier | K58: manuálny | L58: 107.5 | N58: 20 | O58: 1 | P58: ='[1]Sumar MDs'!$C$25 -> 50000 | Q58: t3
B59: Register hlásenia nežiaducich účinkoch | C59: ŠÚKL | D59: Zákon 362/2011 | E59: Register | F59: Agendový | G59: IS o liekoch | H59: formulár | I59: papier, email, telefón, web | K59: manuálny | L59: 4680 | N59: 40 | O59: 1 | P59: ='[1]Sumar MDs'!$C$25 -> 50000 | Q59: t3
B60: Register spisov | C60: RÚVZ | D60: nie je | E60: Register | F60: Agendový | G60: IS Win ASU | H60: nie sú definované | I60: papier, osobne, e-mail | K60: manuálny | L60: 201288 | M60: ročný objem dát | N60: N/A | O60: 1 | P60: ='[1]Sumar MDs'!$C$25 -> 50000 | Q60: t7
B61: Databáza výsledkov laboratórnych vyšetrení | C61: RÚVZ BA | E61: Databáza | F61: Agendový | G61: IS LIMS | H61: formulár | I61: papier | K61: manuálny | M61: ročný objem dát | N61: N/A | O61: 1 | P61: ='[1]Sumar MDs'!$C$22 -> 5000 | Q61: t7
B62: Register odborne spôsobilých osôb | C62: RÚVZ | E62: Register | F62: Agendový | G62: IS ÚVZ | H62: formulár | K62: manuálny | L62: 109868 | M62: ročný objem dát | N62: 5 | O62: 1 | P62: ='[1]Sumar MDs'!$C$25 -> 50000 | Q62: t7
B63: Databáza spracovaných informácii z vyšetrení | C63: RÚVZ | D63: Zákon 355/2007 | E63: Databáza | F63: Agendový | G63: IS o kvalite vody na kúpanie, IS pitná voda | H63: formulár | I63: papier | J63: web | K63: manuálny | L63: 2415 | M63: ročný objem dát | N63: N/A | O63: 1 | P63: ='[1]Sumar MDs'!$C$22 -> 5000 | Q63: t7

Sheet Ciselniky
B2: Zoznam číselníkov
B4: Názov číselníka | C4: Vlastný/preberaný
B5: Stav kategorizácie
B6: Stav registrácie
B7: Povolenie viacnásobnej preskripcie
B8: Skupina omamných a psychotropných látok
B9: Lieková forma
B10: Typ liekového upozornenia
B11: Zoznam diagnóz
B12: Zoznam zdravotných výkonov
B13: Funkcia zdravotníckeho pracovníka
B14: Typ kontaktnej osoby
B15: Okolnosti merania krvného tlaku
B16: Dôvod ukončenia a dočasného pozastavenia registrácie
B17: Charakter očkovania
B18: Zdravotnícka odbornosť
B19: Druh očkovaní
B20: Typ očkovania
B21: Druh odbornej činnosti
B22: Druh zariadenia v zdravotníctve
B23: Odborné zameranie v zariadení
B24: Zdravotnícke povolanie
B25: Orgán príslušný na vydanie rozhodnutia v zdravotníctve
B26: Právna forma organizácie | C26: Preberaný
B27: Samosprávny kraj | C27: Preberaný
B28: Lokálna štatistická územná jednotka 1 - okres | C28: Preberaný
B29: Lokálna štatistická územná jednotka 2 - obec | C29: Preberaný
B30: Krajina OSN | C30: Preberaný
B31: Laboratórne položky
B32: Identifikátor | C32: Preberaný
B33: Príbuzenský stav | C33: Preberaný
B34: Pohlavie | C34: Preberaný
B35: Rodinný stav | C35: Preberaný
B36: Existenčný stav | C36: Preberaný
B37: Druhy nežiaducich reakcií
B38: Titul za menom | C38: Preberaný
B39: Typ zainteresovanej osoby | C39: Preberaný
B40: Typy krvných skupín
B41: Typ platiteľa zdravotného poistenia
B42: Dôvod ukončenia zdravotného poistenia
B43: Druh adresy | C43: Preberaný
B44: Typ telefónneho čísla | C44: Preberaný
B45: Typ zdravotného poistenia
B46: Anatomicko-terapeuticko-chemický klasifikačný systém
B47: Titul pred menom | C47: Preberaný
B48: Meracie jednotky pre zdravotnícku informatiku
B49: Spôsob podania
B50: Spôsob úhrady za dietetické potraviny
B51: Spôsob úhrady za zdravotnícke pomôcky
B52: Typ vzorky, alebo biologického materiálu
B53: Viazanosť na lekársky predpis
B54: Zásahové územie ambulancie záchrannej zdravotnej služby
B55: Skupiny limitov dietetických potravín
B56: Spôsob úhrady za liek
B57: Indikačná skupina
B58: Skratky výrobcov dietetických potravín
B59: Typy doplňujúcich informácií
B60: Anatomické miesta
B61: Dôvod nevykonania očkovania
B62: Fázy menštruačného cyklu
B63: Kategória výsledku laboratórneho vyšetrenia
B64: Typ platiteľa za laborátorne vyšetrenie
B65: Reakcie po očkovaní
B66: Spôsob odberu laboratórnej vzorky
B67: Transportné obaly laboratórnej vzorky
B68: Urgentnosť vyšetrenia
B69: Skratky držiteľov rozhodnutia o registrácii lieku, skratky výrobcov
B70: Skratky výrobcov zdravotníckych pomôcok
B71: Druh zdravotníckych pomôcok a implantátov
B72: Metódy merania krvného tlaku
B73: Aplikačná forma dietetickej potraviny
B74: Kód zriaďovateľa poskytovateľa zdravotnej starostlivosti a inej organizácie v zdravotníctve
B75: PSČ | C75: Preberaný
B76: Právny vzťah zdravotníckeho pracovníka
B77: Typ indikátora kvality
B78: Oblasti indikátora kvality
B79: Nesprávny spôsob životosprávy, životný štýl
B80: Alergény
B81: Prejavy nežiaducich reakcií
B82: Zoznam komponentov
B83: Originalita lieku
B84: Spôsoby určenia dátumu pôrodu
B85: Základná jednotka pre zdravotnícku informatiku
B86: Typ jednotky pre zdravotnícku informatiku
B87: Predpona pre zdravotnícku informatiku
B88: Konverzia jednotky pre zdravotnícku informatiku
B89: Skupiny liekovej formy
B90: Farmaceutická surovina
B91: Typ doplňujúceho údaja kontraindikácie
B92: Hodnotenie interakcie
B93: Hodnotenie kontraindikácie
B94: Kvalita zdroja
B95: Jednotka meny | C95: Preberaný
B96: Typ dávkovania
B97: Typ doplňujúceho údaja interakcie
B98: Typ liekovej alergie
B99: Závažnosť varovania interakcie
B100: Merná jednotka zdravotníckej pomôcky
B101: Trieda zdravotníckej pomôcky
B102: Typ identifikačného predmetu
B103: Právny základ odbornej spôsobilosti zdravotníckeho pracovníka
B104: Typ odboru odbornej spôsobilosti zdravotníckeho pracovníka
B105: Typ starostlivosti pri výkone zdravotníckeho povolania
B106: Zaradenie do evidenčného počtu
B107: Titul pred menom zdravotníckeho pracovníka
B108: Titul za menom zdravotníckeho pracovníka
B109: Profesijný titul zdravotníckeho pracovníka
B110: Druh licencie zdravotníckeho pracovníka
B111: Dôvod ukončenia a pozastavenia platnosti licencie
B112: Závažnosť kontraindikácie
B113: Špecifikácia odborného zástupcu poskytovateľa zdravotnej starostlivosti
B114: Typ zákonného zástupcu
B115: Indikácia
B116: Ekonomická činnosť | C116: Preberaný
B117: Inštitucionálne subsektory ESÚ 2010 | C117: Preberaný
B118: Druh vlastníctva | C118: Preberaný
B119: Orgány ústrednej štátnej správy | C119: Preberaný
B120: Obmedzenie spôsobilosti na právne úkony | C120: Preberaný
B121: Mikroorganizmus
B122: Dostupnosť lieku v SR
B123: Dostupnosť lieku v lekárni
B124: Spôsob platby
B125: Spôsob doručenia
B126: Plánovaná zdravotná starostlivosť podľa čakacieho zoznamu

Sheet Klasifikacia pre Impl
B2: Zoznam číselníkov
B4: Kategória registra | C4: Počet registrov | D4: Počet MDs na vzorový register
B5: číselník | C5: 122 | D5: 20
B6: manuálny | C6: 32 | D6: 200
B7: plne automatizovaný | C7: 0 | D7: 130
B8: poloautomatický | C8: 27 | D8: 150
B9: webový | C9: 0 | D9: 200

Sheet Štandardné aktivity
B2: Štandarné aktivity pri tvorbe integračných kosolidačných projektov a ich náročnosť
B4: # | C4: Názov aktivity | D4: Pomer prác
B5: 1 | C5: Analýza integračného business procesu | D5: 0.25
B6: 2 | C6: Analýza interfejsových konektorov
B7: 3 | C7: Analýza a návrh dátového úložiska dát a metadát
B8: 4 | C8: Analýza prípadného webového rozhrania integrácie
B9: 5 | C9: Implementácia automatizovaných integračných šablón | D9: 0.15
B10: 6 | C10: Modelovanie/vývoj integračného projektu | D10: 0.17
B11: 7 | C11: Modelovanie/vývoj validácie dát | D11: 0.06
B12: 8 | C12: Modelovanie/vývoj unifikácie dát | D12: 0.06
B13: 9 | C13: Modelovanie/vývoj monitoringu integrácie | D13: 0.04
B14: 10 | C14: Unit testy | D14: 0.05
B15: 11 | C15: Integračné testy | D15: 0.05
B16: 12 | C16: A - Z testy | D16: 0.12
B17: 13 | C17: Dokumentácia | D17: 0.05
D18: =SUM(D5:D17) -> 1
B20: Prácnosť riešenia podľa komponentov
B21: # | C21: Názov komponentu | D21: Pomer prácnosti
B22: 1 | C22: MDM Rezortná zbernica | D22: 0.7
B23: 2 | C23: MDM Portál | D23: 0.1
B24: 3 | C24: MDM Dátový server | D24: 0.2
D25: =SUM(D22:D24) -> 1

Sheet Prinosy
B2: Parametre prínosov
B4: Úspora nákladov vyplývajúca z cloudového riešenia
B6: Úspora prevádzkových nákladov oproti súčasným riešeniam | C6: 0.1
B8: % nahrádzania súčasných systémov cloudom
B9: t1 | C9: 0
B10: t2 | C10: 0
B11: t3 | C11: 0
B12: t4 | C12: 0.15
B13: t5 | C13: 0.2
B14: t6 | C14: 0.25
B15: t7 | C15: 0.3
B16: t8 | C16: 0.35
B17: t9 | C17: 0.4
B18: t10 | C18: 0.5
B21: Zníženie chybovosti údajov
B23: Počet chybových údajov vyžadujúcich manuálnu korekciu pred realizáciou za rok | C23: 300000
B24: Počet chybových údajov vyžadujúcich manuálnu korekciu po realizácii za rok | C24: 50000
B25: Priemerný čas na 1 korekciu pred realizáciou (hod) | C25: 1.5
B26: Priemerný čas na 1 korekciu po realizácii (hod) | C26: 0.5
B27: Čas strávený korekciou údajov za rok | C27: =C23*C25 -> 450000
B28: Čas strávený korekciou údajov za rok | C28: =C24*C26 -> 25000
B29: Časová úspora vyplývajúca z realizácie projektu (hod) | C29: =C27-C28 -> 425000
B30: Priemerný osobné náklady (EUR/hod) | C30: =Faktory!D7 -> 9.42
B31: Ekonomická úspora z realizácie projektu (EUR/rok) | C31: =C29*C30 -> 4003500

Sheet MD rates
B2: Priemerný náklad na vývoj v EUR/človekodeň
B4: Pozícia | C4: EUR/ČD | D4: Podiel
B5: IT architekt | C5: 910 | D5: 0.02 | E5: =C5*D5 -> 18.2
B6: IT tester | C6: 570 | D6: 0.12 | E6: =C6*D6 -> 68.4
B7: IT programátor/vývojár | C7: 650 | D7: 0.55 | E7: 357.5
B8: Projektový manažér IT projektu | C8: 890 | D8: 0.02 | E8: 17.8
B9: IT analytik | C9: 740 | D9: 0.1 | E9: 74
B10: IT dohľad/Quality Assurance | C10: 890 | D10: 0.02 | E10: 17.8
B11: Špecialista pre bezpečnosť IT | C11: 1200 | D11: 0.02 | E11: 24
B12: Špecialista pre databázy | C12: 600 | D12: 0.15 | E12: 90
B13: Vážený priemer EUR/ČD | D13: =SUM(D5:D12) -> 1 | E13: =SUM(E5:E12)/SUM(D5:D12) -> 667.7
B15: Priemerná zľava | C15: 0.3
B16: Priemerný náklad na vývoj v EUR/ČD | C16: =E13*(1-C15) -> 467.39
